Publisher Label,Publisher URI,"Supplier","Net Amount £","Organisational Unit","Merchant Category Code","Purpose","Payment Date"
"Wolverhampton City Council","http://opendatacommunities.org/id/metropolitan-district-council/wolverhampton","GEN REGISTER OFFICE",14,"LAC Transitions Team","9399","Client Allowances","30/08/2019"
"Wolverhampton City Council","http://opendatacommunities.org/id/metropolitan-district-council/wolverhampton","W HAMPTON1109",10.25,"Car Parks Operational Staff","5211","R4000","30/08/2019"
"Wolverhampton City Council","http://opendatacommunities.org/id/metropolitan-district-council/wolverhampton","AMZNMKTPLACE AMAZON.CO",34.45,"EIP Locality 8","5999","R4000","30/08/2019"
"Wolverhampton City Council","http://opendatacommunities.org/id/metropolitan-district-council/wolverhampton","AMZNMKTPLACE AMAZON.CO",22.97,"EIP Locality 8","5999","R4000","30/08/2019"
"Wolverhampton City Council","http://opendatacommunities.org/id/metropolitan-district-council/wolverhampton","Amazon.co.uk MA3627TS4",37.6,"Research & Development","5969","Books","30/08/2019"
"Wolverhampton City Council","http://opendatacommunities.org/id/metropolitan-district-council/wolverhampton","WWW.WMCA.CO.UK",56.5,"IMPACT","9399","Public Transport","30/08/2019"
"Wolverhampton City Council","http://opendatacommunities.org/id/metropolitan-district-council/wolverhampton","WWW.WMCA.CO.UK",56.5,"IMPACT","9399","Services - Fees and Charges","30/08/2019"
"Wolverhampton City Council","http://opendatacommunities.org/id/metropolitan-district-council/wolverhampton","B & Q 1169",14.08,"Technician","5200","R4000","30/08/2019"
"Wolverhampton City Council","http://opendatacommunities.org/id/metropolitan-district-council/wolverhampton","WEST MIDLANDS METRO",7.6,"Technician","4111","Public Transport","30/08/2019"
"Wolverhampton City Council","http://opendatacommunities.org/id/metropolitan-district-council/wolverhampton","SAFETYSUPPL",15.95,"Collections & Conservation","5311","R4000","30/08/2019"
"Wolverhampton City Council","http://opendatacommunities.org/id/metropolitan-district-council/wolverhampton","AMZNMKTPLACE AMAZON.CO",10.4,"Keith Piper","5999","R4000","30/08/2019"
"Wolverhampton City Council","http://opendatacommunities.org/id/metropolitan-district-council/wolverhampton","AMZNMKTPLACE AMAZON.CO",16.67,"Keith Piper","5999","R4000","30/08/2019"
"Wolverhampton City Council","http://opendatacommunities.org/id/metropolitan-district-council/wolverhampton","WHOLESALE LED LIGHTS",59.94,"Diwali","5251","Equipment - Health and Safety","30/08/2019"
"Wolverhampton City Council","http://opendatacommunities.org/id/metropolitan-district-council/wolverhampton","HMCOURTS-SERVICE.G",75,"Mental Health Assessment & Care Mgmt","9222","Services - Professional Fees","30/08/2019"
"Wolverhampton City Council","http://opendatacommunities.org/id/metropolitan-district-council/wolverhampton","Virgin Trains",110,"Quality Assurance & Policies","4112","Public Transport","30/08/2019"
"Wolverhampton City Council","http://opendatacommunities.org/id/metropolitan-district-council/wolverhampton","Virgin Trains",110,"Quality Assurance & Policies","4112","Public Transport","30/08/2019"
"Wolverhampton City Council","http://opendatacommunities.org/id/metropolitan-district-council/wolverhampton","ARGOS RETAIL GROUP",55.4,"LAC Transitions Team","5310","Client Allowances","30/08/2019"
"Wolverhampton City Council","http://opendatacommunities.org/id/metropolitan-district-council/wolverhampton","POST OFFICE COUNTER",7.4,"Regional Adoption Agency","9402","Comms - Postage","30/08/2019"
"Wolverhampton City Council","http://opendatacommunities.org/id/metropolitan-district-council/wolverhampton","PREMIER INN",87.92,"Fostering Team & Allowances","3811","Services - Supplies & Services to users","30/08/2019"
"Wolverhampton City Council","http://opendatacommunities.org/id/metropolitan-district-council/wolverhampton","AMZNMktplace",13.2,"Ward Fund - St Peter�s","5999","R4000","30/08/2019"
"Wolverhampton City Council","http://opendatacommunities.org/id/metropolitan-district-council/wolverhampton","000002200500000",40,"Emergency Duty Team","6011","Financial Assistance In Exceptional Circ","30/08/2019"
"Wolverhampton City Council","http://opendatacommunities.org/id/metropolitan-district-council/wolverhampton","AO RETAIL LIMITED",249,"LAC Transitions Team","5722","Client Allowances","30/08/2019"
"Wolverhampton City Council","http://opendatacommunities.org/id/metropolitan-district-council/wolverhampton","IZ  D & K TRADING (MID",67.8,"Bilston Market & Licensed Operations","5999","R4000","30/08/2019"
"Wolverhampton City Council","http://opendatacommunities.org/id/metropolitan-district-council/wolverhampton","AMZNMktplace",7.55,"Global Budgets","5999","Books","30/08/2019"
"Wolverhampton City Council","http://opendatacommunities.org/id/metropolitan-district-council/wolverhampton","HERON FOODS LTD",19.83,"Ernest Bold Court","5499","Provisions (Not for resale)","30/08/2019"
"Wolverhampton City Council","http://opendatacommunities.org/id/metropolitan-district-council/wolverhampton","EB  DOMESTIC ABUSE BIL",140,"Workforce Development","7399","Training Expenses","30/08/2019"
"Wolverhampton City Council","http://opendatacommunities.org/id/metropolitan-district-council/wolverhampton","CardtronicsUK",60,"Ernest Bold Court","6011","R4000","30/08/2019"
"Wolverhampton City Council","http://opendatacommunities.org/id/metropolitan-district-council/wolverhampton","AMZNMktplace",2.59,"Parks - Ranger Service","5999","Materials","30/08/2019"
"Wolverhampton City Council","http://opendatacommunities.org/id/metropolitan-district-council/wolverhampton","CLONE-MEDIA.CO.UK",2436,"Delivery & OCE Development","5943","Stationery","30/08/2019"
"Wolverhampton City Council","http://opendatacommunities.org/id/metropolitan-district-council/wolverhampton","MCDONALDS",10.44,"LAC Transitions Team","5814","Client Allowances","29/08/2019"
"Wolverhampton City Council","http://opendatacommunities.org/id/metropolitan-district-council/wolverhampton","AMZNMKTPLACE AMAZON.CO",1.99,"EIP Locality 8","5999","R4000","29/08/2019"
"Wolverhampton City Council","http://opendatacommunities.org/id/metropolitan-district-council/wolverhampton","ASDA GROCERIES ONLINE",-0.5,"Bradley Resource Centre","5411","Provisions (Not for resale)","29/08/2019"
"Wolverhampton City Council","http://opendatacommunities.org/id/metropolitan-district-council/wolverhampton","ASDA GROCERIES ONLINE",55.25,"Bradley Resource Centre","5411","Provisions (Not for resale)","29/08/2019"
"Wolverhampton City Council","http://opendatacommunities.org/id/metropolitan-district-council/wolverhampton","COVENTRY UNIVERSITY FI",250,"LAC Transitions Team","8220","Accommodation Costs","29/08/2019"
"Wolverhampton City Council","http://opendatacommunities.org/id/metropolitan-district-council/wolverhampton","KICKTEK LTD",48.73,"The Little Civic","5732","Equipment - Health and Safety","29/08/2019"
"Wolverhampton City Council","http://opendatacommunities.org/id/metropolitan-district-council/wolverhampton","Virgin Trains",109.5,"Revenues","4112","Public Transport","29/08/2019"
"Wolverhampton City Council","http://opendatacommunities.org/id/metropolitan-district-council/wolverhampton","Virgin Trains",26.5,"Revenues","4112","Public Transport","29/08/2019"
"Wolverhampton City Council","http://opendatacommunities.org/id/metropolitan-district-council/wolverhampton","EDMUNDSON ELECTRICAL L",58.79,"Street Lighting Maintenance","5065","Equipment - R & M","29/08/2019"
"Wolverhampton City Council","http://opendatacommunities.org/id/metropolitan-district-council/wolverhampton","ROYAL BK OF SCOTLAND",250,"CIN/CP Social Work Unit - Area 6","6011","Section 17","29/08/2019"
"Wolverhampton City Council","http://opendatacommunities.org/id/metropolitan-district-council/wolverhampton","BLOXWICH NORTH SST",4.25,"Economic Development","4112","Public Transport","29/08/2019"
"Wolverhampton City Council","http://opendatacommunities.org/id/metropolitan-district-council/wolverhampton","Virgin Trains",184,"Fostering Team & Allowances","4112","Public Transport","29/08/2019"
"Wolverhampton City Council","http://opendatacommunities.org/id/metropolitan-district-council/wolverhampton","Trainline",41.92,"LAC Transitions Team","4112","Public Transport","29/08/2019"
"Wolverhampton City Council","http://opendatacommunities.org/id/metropolitan-district-council/wolverhampton","Trainline",8.9,"LAC Transitions Team","4112","Client Allowances","29/08/2019"
"Wolverhampton City Council","http://opendatacommunities.org/id/metropolitan-district-council/wolverhampton","HM PASSPORT OFFICE",58.5,"LAC Team","9399","Financial Assistance In Exceptional Circ","29/08/2019"
"Wolverhampton City Council","http://opendatacommunities.org/id/metropolitan-district-council/wolverhampton","ROYAL CARPETS",166.67,"LAC Transitions Team","5713","Accommodation Costs","29/08/2019"
"Wolverhampton City Council","http://opendatacommunities.org/id/metropolitan-district-council/wolverhampton","PAYPAL  CHATTYCAFES",10,"Blakenhall Commty & Healthy Living Ctr","8398","Services - Supplies & Services to users","29/08/2019"
"Wolverhampton City Council","http://opendatacommunities.org/id/metropolitan-district-council/wolverhampton","ARGOS RETAIL GROUP",7.86,"EIP Locality 3","5310","Accommodation Costs","29/08/2019"
"Wolverhampton City Council","http://opendatacommunities.org/id/metropolitan-district-council/wolverhampton","AMZNMktplace",4.57,"Mayoral Expenses","5999","R4000","29/08/2019"
"Wolverhampton City Council","http://opendatacommunities.org/id/metropolitan-district-council/wolverhampton","Virgin Trains",128.05,"Fostering Team & Allowances","4112","Public Transport","28/08/2019"
"Wolverhampton City Council","http://opendatacommunities.org/id/metropolitan-district-council/wolverhampton","GOOGLE  ADS9680351324",500,"Communications & Marketing - General","5968","Subscriptions","28/08/2019"
"Wolverhampton City Council","http://opendatacommunities.org/id/metropolitan-district-council/wolverhampton","WIX.COM",-3,"Technical Support","5817","Computing - Purchase of Software","28/08/2019"
"Wolverhampton City Council","http://opendatacommunities.org/id/metropolitan-district-council/wolverhampton","RAGLAN STREET ST MARK",150,"EIP Locality 3","6011","Accommodation Costs","28/08/2019"
"Wolverhampton City Council","http://opendatacommunities.org/id/metropolitan-district-council/wolverhampton","Virgin Trains",62.8,"Looked After Team 2","4112","Public Transport","28/08/2019"
"Wolverhampton City Council","http://opendatacommunities.org/id/metropolitan-district-council/wolverhampton","ROOKERY Sainsburys Ba",100,"Duke Street Bungalows","6011","Provisions (Not for resale)","28/08/2019"
"Wolverhampton City Council","http://opendatacommunities.org/id/metropolitan-district-council/wolverhampton","ALLDAY TIME SYSTEMS",93.99,"Direct Schools","5734","Materials","28/08/2019"
"Wolverhampton City Council","http://opendatacommunities.org/id/metropolitan-district-council/wolverhampton","LOYD 37 CHURCH STREET",150,"EIP Locality 8","6011","R4000","28/08/2019"
"Wolverhampton City Council","http://opendatacommunities.org/id/metropolitan-district-council/wolverhampton","AMZNMKTPLACE AMAZON.CO",13.12,"Safeguarding Admin Resource","5999","Equipment - Purchase","28/08/2019"
"Wolverhampton City Council","http://opendatacommunities.org/id/metropolitan-district-council/wolverhampton","ASDA GROCERIES ONLINE",-5.1,"Key to Inspiration","5411","Provisions (Not for resale)","28/08/2019"
"Wolverhampton City Council","http://opendatacommunities.org/id/metropolitan-district-council/wolverhampton","ASDA GROCERIES ONLINE",158.6,"Key to Inspiration","5411","Catering","28/08/2019"
"Wolverhampton City Council","http://opendatacommunities.org/id/metropolitan-district-council/wolverhampton","WWW.ARGOS.CO.UK",77.44,"LAC Transitions Team","5310","Client Allowances","28/08/2019"
"Wolverhampton City Council","http://opendatacommunities.org/id/metropolitan-district-council/wolverhampton","FOOTASYLUM LTD",104.16,"IMPACT","5941","Equipment - Purchase","28/08/2019"
"Wolverhampton City Council","http://opendatacommunities.org/id/metropolitan-district-council/wolverhampton","WWW.WMCA.CO.UK",61.5,"IMPACT","9399","Accommodation Costs","28/08/2019"
"Wolverhampton City Council","http://opendatacommunities.org/id/metropolitan-district-council/wolverhampton","PAYPAL  EVENTSINDUS",25,"Visitor Economy - Development","8999","Accommodation Costs","28/08/2019"
"Wolverhampton City Council","http://opendatacommunities.org/id/metropolitan-district-council/wolverhampton","WWW.CARESHOP.CO.UK",92.72,"Ernest Bold Court","5999","Materials","28/08/2019"
"Wolverhampton City Council","http://opendatacommunities.org/id/metropolitan-district-council/wolverhampton","BRITANNIA",69.17,"Destitute Plus","7011","No Recourse to Public Funds","28/08/2019"
"Wolverhampton City Council","http://opendatacommunities.org/id/metropolitan-district-council/wolverhampton","BRITANNIA",93.33,"Destitute Plus","7011","No Recourse to Public Funds","28/08/2019"
"Wolverhampton City Council","http://opendatacommunities.org/id/metropolitan-district-council/wolverhampton","000002200500000",100,"Childrens with Disabilities Team","6011","Section 17","28/08/2019"
"Wolverhampton City Council","http://opendatacommunities.org/id/metropolitan-district-council/wolverhampton","POST OFFICE COUNTER",285,"Regional Adoption Agency","9402","Comms - Postage","28/08/2019"
"Wolverhampton City Council","http://opendatacommunities.org/id/metropolitan-district-council/wolverhampton","Virgin Trains",10,"Fostering Team & Allowances","4112","Public Transport","28/08/2019"
"Wolverhampton City Council","http://opendatacommunities.org/id/metropolitan-district-council/wolverhampton","WWW.PRIMESTUDENTLIVING",208.33,"LAC Transitions Team","6513","Accommodation Costs","27/08/2019"
"Wolverhampton City Council","http://opendatacommunities.org/id/metropolitan-district-council/wolverhampton","B & Q 1243",16.38,"Bert Williams Leisure Centre","5200","Equipment - Purchase","27/08/2019"
"Wolverhampton City Council","http://opendatacommunities.org/id/metropolitan-district-council/wolverhampton","AMZNMktplace",36.99,"Bert Williams Leisure Centre","5999","Equipment - Purchase","27/08/2019"
"Wolverhampton City Council","http://opendatacommunities.org/id/metropolitan-district-council/wolverhampton","Amazon.co.uk MA6RB0474",83.32,"Bert Williams Leisure Centre","5969","R4000","27/08/2019"
"Wolverhampton City Council","http://opendatacommunities.org/id/metropolitan-district-council/wolverhampton","ASDA GROCERIES ONLINE",-1,"Ernest Bold Court","5411","Provisions (Not for resale)","27/08/2019"
"Wolverhampton City Council","http://opendatacommunities.org/id/metropolitan-district-council/wolverhampton","ASDA GROCERIES ONLINE",79.15,"Ernest Bold Court","5411","Provisions (Not for resale)","27/08/2019"
"Wolverhampton City Council","http://opendatacommunities.org/id/metropolitan-district-council/wolverhampton","LAPTOPSCREEN.CO.UK",201.86,"Strategic ICTS (ICT Serv Budget)","5734","Computing - Purchase of Software","26/08/2019"
"Wolverhampton City Council","http://opendatacommunities.org/id/metropolitan-district-council/wolverhampton","Amazon.co.uk MA5ZL8ZI4",11.48,"Safeguarding Admin Resource","5969","R4400","26/08/2019"
"Wolverhampton City Council","http://opendatacommunities.org/id/metropolitan-district-council/wolverhampton","WWW.CHILTERNRAILWAYS.C",26.4,"Research & Development","4112","Public Transport","26/08/2019"
"Wolverhampton City Council","http://opendatacommunities.org/id/metropolitan-district-council/wolverhampton","Trainline.com",46.6,"Research & Development","4112","Public Transport","26/08/2019"
"Wolverhampton City Council","http://opendatacommunities.org/id/metropolitan-district-council/wolverhampton","WICKES STAFFORD",9.9,"Keith Piper","5211","R4400","26/08/2019"
"Wolverhampton City Council","http://opendatacommunities.org/id/metropolitan-district-council/wolverhampton","B & Q 1243",27.03,"Technician","5200","Equipment - Purchase","26/08/2019"
"Wolverhampton City Council","http://opendatacommunities.org/id/metropolitan-district-council/wolverhampton","ASDA",144.5,"Keith Piper","5411","R4400","26/08/2019"
"Wolverhampton City Council","http://opendatacommunities.org/id/metropolitan-district-council/wolverhampton","GEN REGISTER OFFICE",14,"LAC Transitions Team","9399","Client Allowances","26/08/2019"
"Wolverhampton City Council","http://opendatacommunities.org/id/metropolitan-district-council/wolverhampton","NATWEST BANK",250,"CAT","6011","Financial Assistance In Exceptional Circ","26/08/2019"
"Wolverhampton City Council","http://opendatacommunities.org/id/metropolitan-district-council/wolverhampton","WWW.BRISTOWSUTOR.C",0,"Revenues","9399","R9382","26/08/2019"
"Wolverhampton City Council","http://opendatacommunities.org/id/metropolitan-district-council/wolverhampton","WWW.BRISTOWSUTOR.C",0,"Parking Enforcement","9399","Services - Fees and Charges","26/08/2019"
"Wolverhampton City Council","http://opendatacommunities.org/id/metropolitan-district-council/wolverhampton","EDMUNDSON ELECTRICAL L",20.12,"Street Lighting Maintenance","5065","Equipment - R & M","26/08/2019"
"Wolverhampton City Council","http://opendatacommunities.org/id/metropolitan-district-council/wolverhampton","BRITANNIA",20.83,"Destitute Plus","7011","No Recourse to Public Funds","26/08/2019"
"Wolverhampton City Council","http://opendatacommunities.org/id/metropolitan-district-council/wolverhampton","NATWEST BANK",200,"Court Team","6011","Section 17","26/08/2019"
"Wolverhampton City Council","http://opendatacommunities.org/id/metropolitan-district-council/wolverhampton","SAINSBURYS PFS (1340)",1.67,"Mayoral Expenses","5541","Vehicle Maintenance - Repairs","26/08/2019"
"Wolverhampton City Council","http://opendatacommunities.org/id/metropolitan-district-council/wolverhampton","ITUNES.COM/BILL",9.99,"Managing Director","5735","Computing - Purchase of Software","26/08/2019"
"Wolverhampton City Council","http://opendatacommunities.org/id/metropolitan-district-council/wolverhampton","ASDA GROCERIES ONLINE",-1.99,"Upper Pendeford Farm Childrens Home","5411","Provisions (Not for resale)","26/08/2019"
"Wolverhampton City Council","http://opendatacommunities.org/id/metropolitan-district-council/wolverhampton","ASDA GROCERIES ONLINE",259.86,"Upper Pendeford Farm Childrens Home","5411","Provisions (Not for resale)","26/08/2019"
"Wolverhampton City Council","http://opendatacommunities.org/id/metropolitan-district-council/wolverhampton","Virgin Trains",115.1,"Looked After Team 2","4112","Public Transport","26/08/2019"
"Wolverhampton City Council","http://opendatacommunities.org/id/metropolitan-district-council/wolverhampton","Virgin Trains",34.75,"Looked After Team 2","4112","Client Transport","26/08/2019"
"Wolverhampton City Council","http://opendatacommunities.org/id/metropolitan-district-council/wolverhampton","WIX.COM",36.76,"Technical Support","5968","Subscriptions","26/08/2019"
"Wolverhampton City Council","http://opendatacommunities.org/id/metropolitan-district-council/wolverhampton","WIX.COM",41.57,"Technical Support","5968","Subscriptions","26/08/2019"
"Wolverhampton City Council","http://opendatacommunities.org/id/metropolitan-district-council/wolverhampton","WIX.COM",42.57,"Technical Support","5968","Subscriptions","26/08/2019"
"Wolverhampton City Council","http://opendatacommunities.org/id/metropolitan-district-council/wolverhampton","Wix.com",36.75,"Technical Support","5817","Computing - Purchase of Software","26/08/2019"
"Wolverhampton City Council","http://opendatacommunities.org/id/metropolitan-district-council/wolverhampton","Wix.com",34.74,"Technical Support","5817","Computing - Purchase of Software","26/08/2019"
"Wolverhampton City Council","http://opendatacommunities.org/id/metropolitan-district-council/wolverhampton","Wix.com",42.57,"Technical Support","5817","Computing - Purchase of Software","26/08/2019"
"Wolverhampton City Council","http://opendatacommunities.org/id/metropolitan-district-council/wolverhampton","Wix.com",40.57,"Technical Support","5817","Computing - Purchase of Software","26/08/2019"
"Wolverhampton City Council","http://opendatacommunities.org/id/metropolitan-district-council/wolverhampton","Wix.com",36.75,"Technical Support","5817","Computing - Purchase of Software","26/08/2019"
"Wolverhampton City Council","http://opendatacommunities.org/id/metropolitan-district-council/wolverhampton","Wix.com",36.76,"Technical Support","5817","Computing - Purchase of Software","26/08/2019"
"Wolverhampton City Council","http://opendatacommunities.org/id/metropolitan-district-council/wolverhampton","Wix.com",29.7,"Technical Support","5817","Computing - Purchase of Software","26/08/2019"
"Wolverhampton City Council","http://opendatacommunities.org/id/metropolitan-district-council/wolverhampton","POST OFFICE COUNTER",7.4,"LAC Team","9402","Comms - Postage","26/08/2019"
"Wolverhampton City Council","http://opendatacommunities.org/id/metropolitan-district-council/wolverhampton","ASDA GROCERIES ONLINE",5,"Ernest Bold Court","5411","Provisions (Not for resale)","26/08/2019"
"Wolverhampton City Council","http://opendatacommunities.org/id/metropolitan-district-council/wolverhampton","ASDA GROCERIES ONLINE",62.96,"Ernest Bold Court","5411","Provisions (Not for resale)","26/08/2019"
"Wolverhampton City Council","http://opendatacommunities.org/id/metropolitan-district-council/wolverhampton","ARGOS LTD",24.99,"Duke Street Bungalows","5310","R4010","26/08/2019"
"Wolverhampton City Council","http://opendatacommunities.org/id/metropolitan-district-council/wolverhampton","AMZNMktplace",50,"Duke Street Bungalows","5999","Materials","26/08/2019"
"Wolverhampton City Council","http://opendatacommunities.org/id/metropolitan-district-council/wolverhampton","ONEBELOW",4.17,"Car Parks Operational Staff","5411","R4000","23/08/2019"
"Wolverhampton City Council","http://opendatacommunities.org/id/metropolitan-district-council/wolverhampton","TIMPSON LTD",10,"Car Parks Operational Staff","7251","R4000","23/08/2019"
"Wolverhampton City Council","http://opendatacommunities.org/id/metropolitan-district-council/wolverhampton","iStock.com",310,"Communications & Marketing - General","7333","Marketing \ Non-staff advertising","23/08/2019"
"Wolverhampton City Council","http://opendatacommunities.org/id/metropolitan-district-council/wolverhampton","ASDA GROCERIES ONLINE",-1.34,"Bradley Resource Centre","5411","Provisions (Not for resale)","23/08/2019"
"Wolverhampton City Council","http://opendatacommunities.org/id/metropolitan-district-council/wolverhampton","ASDA GROCERIES ONLINE",143.81,"Bradley Resource Centre","5411","Provisions (Not for resale)","23/08/2019"
"Wolverhampton City Council","http://opendatacommunities.org/id/metropolitan-district-council/wolverhampton","PAYPAL  SAANVIPORTC",7.1,"The Little Civic","5945","Accommodation Costs","23/08/2019"
"Wolverhampton City Council","http://opendatacommunities.org/id/metropolitan-district-council/wolverhampton","PAYPAL  SUPERSTARST",16.13,"The Little Civic","5331","Accommodation Costs","23/08/2019"
"Wolverhampton City Council","http://opendatacommunities.org/id/metropolitan-district-council/wolverhampton","POST OFFICE COUNTER",140,"Fostering Team & Allowances","9402","Comms - Postage","23/08/2019"
"Wolverhampton City Council","http://opendatacommunities.org/id/metropolitan-district-council/wolverhampton","ROYAL BK OF SCOTLAND",70,"Ernest Bold Court","6011","R4000","23/08/2019"
"Wolverhampton City Council","http://opendatacommunities.org/id/metropolitan-district-council/wolverhampton","Trainline",73.2,"LAC Transitions Team","4112","Public Transport","23/08/2019"
"Wolverhampton City Council","http://opendatacommunities.org/id/metropolitan-district-council/wolverhampton","Virgin Trains",39.6,"LAC Team","4112","Public Transport","23/08/2019"
"Wolverhampton City Council","http://opendatacommunities.org/id/metropolitan-district-council/wolverhampton","HM PASSPORT OFFICE",58.5,"LAC Team","9399","Services - Fees and Charges","23/08/2019"
"Wolverhampton City Council","http://opendatacommunities.org/id/metropolitan-district-council/wolverhampton","WIX.COM",-3,"Technical Support","5817","Computing - Purchase of Software","23/08/2019"
"Wolverhampton City Council","http://opendatacommunities.org/id/metropolitan-district-council/wolverhampton","Wix.com",-3,"Technical Support","5817","Computing - Purchase of Software","23/08/2019"
"Wolverhampton City Council","http://opendatacommunities.org/id/metropolitan-district-council/wolverhampton","AMZNMktplace",3.29,"Global Budgets","5999","Accommodation Costs","23/08/2019"
"Wolverhampton City Council","http://opendatacommunities.org/id/metropolitan-district-council/wolverhampton","AMZNMKTPLACE AMAZON.CO",62.42,"Trading Standards","5999","R4000","23/08/2019"
"Wolverhampton City Council","http://opendatacommunities.org/id/metropolitan-district-council/wolverhampton","AMZNMktplace",42.46,"Licensing - Licensing Act 2003","5999","Equipment - Purchase","23/08/2019"
"Wolverhampton City Council","http://opendatacommunities.org/id/metropolitan-district-council/wolverhampton","ALBRIGHTON FEEDS LIMIT",136.3,"Parks - Ranger Service","5995","R4000","23/08/2019"
"Wolverhampton City Council","http://opendatacommunities.org/id/metropolitan-district-council/wolverhampton","Creative Cloud Indiv",301.84,"Landscape","5734","Computing - Purchase of Software","23/08/2019"
"Wolverhampton City Council","http://opendatacommunities.org/id/metropolitan-district-council/wolverhampton","CO-OP GROUP 070362",5.8,"Northicote Farm","5411","Provisions (Not for resale)","23/08/2019"
"Wolverhampton City Council","http://opendatacommunities.org/id/metropolitan-district-council/wolverhampton","CUMMINGS BROTHERS LOCK",89.17,"Northicote Farm","7399","R4000","23/08/2019"
"Wolverhampton City Council","http://opendatacommunities.org/id/metropolitan-district-council/wolverhampton","Trainline.com",330.6,"LAC Transitions Team","4112","Public Transport","22/08/2019"
"Wolverhampton City Council","http://opendatacommunities.org/id/metropolitan-district-council/wolverhampton","POST OFFICE COUNTER",1.9,"LAC Transitions Team","9402","Client Allowances","22/08/2019"
"Wolverhampton City Council","http://opendatacommunities.org/id/metropolitan-district-council/wolverhampton","ELY HOUSE HOTEL",57.5,"Destitute Plus","7011","No Recourse to Public Funds","22/08/2019"
"Wolverhampton City Council","http://opendatacommunities.org/id/metropolitan-district-council/wolverhampton","ALDI 73 772",9.98,"LAC Transitions Team","5411","Accommodation Costs","22/08/2019"
"Wolverhampton City Council","http://opendatacommunities.org/id/metropolitan-district-council/wolverhampton","B&M RETAIL LTD",30.79,"LAC Transitions Team","5310","Accommodation Costs","22/08/2019"
"Wolverhampton City Council","http://opendatacommunities.org/id/metropolitan-district-council/wolverhampton","B&M RETAIL LTD",8.32,"LAC Transitions Team","5310","Accommodation Costs","22/08/2019"
"Wolverhampton City Council","http://opendatacommunities.org/id/metropolitan-district-council/wolverhampton","CT WOLVERHAMPTON",70,"LAC Transitions Team","8398","Accommodation Costs","22/08/2019"
"Wolverhampton City Council","http://opendatacommunities.org/id/metropolitan-district-council/wolverhampton","TESCO STORES 6727",4,"Youth Offending Team","5411","Provisions (Not for resale)","22/08/2019"
"Wolverhampton City Council","http://opendatacommunities.org/id/metropolitan-district-council/wolverhampton","B&M RETAIL LTD",11.67,"LAC Transitions Team","5310","Client Allowances","22/08/2019"
"Wolverhampton City Council","http://opendatacommunities.org/id/metropolitan-district-council/wolverhampton","ARGOS LTD",155.82,"LAC Transitions Team","5310","Client Allowances","22/08/2019"
"Wolverhampton City Council","http://opendatacommunities.org/id/metropolitan-district-council/wolverhampton","LIGHT HOUSE MEDIA",68.64,"Regional Adoption Agency","7922","Educ Trips, Holidays, Outings, Activity","22/08/2019"
"Wolverhampton City Council","http://opendatacommunities.org/id/metropolitan-district-council/wolverhampton","BIRMINGHAM PARISH CHUR",114,"Regional Adoption Agency","8398","Services - Supplies & Services to users","22/08/2019"
"Wolverhampton City Council","http://opendatacommunities.org/id/metropolitan-district-council/wolverhampton","Virgin Trains",184,"Fostering Team & Allowances","4112","Public Transport","22/08/2019"
"Wolverhampton City Council","http://opendatacommunities.org/id/metropolitan-district-council/wolverhampton","SAINSBURYS SACAT (2340",5.2,"Mayoral Expenses","5411","Hospitality","22/08/2019"
"Wolverhampton City Council","http://opendatacommunities.org/id/metropolitan-district-council/wolverhampton","HALFORDS 0775",8.33,"LAC Transitions Team","5940","Accommodation Costs","22/08/2019"
"Wolverhampton City Council","http://opendatacommunities.org/id/metropolitan-district-council/wolverhampton","Trainline",24.67,"Research & Development","4112","Public Transport","22/08/2019"
"Wolverhampton City Council","http://opendatacommunities.org/id/metropolitan-district-council/wolverhampton","Trainline",68.68,"Research & Development","4112","Public Transport","22/08/2019"
"Wolverhampton City Council","http://opendatacommunities.org/id/metropolitan-district-council/wolverhampton","TVLICENSING.CO.UK",154.5,"LAC Transitions Team","7392","Accommodation Costs","22/08/2019"
"Wolverhampton City Council","http://opendatacommunities.org/id/metropolitan-district-council/wolverhampton","BIGDUG LIMITED",166.8,"Mayor's Charity","5072","Accommodation Costs","22/08/2019"
"Wolverhampton City Council","http://opendatacommunities.org/id/metropolitan-district-council/wolverhampton","JAMES LISTER & SONS LT",74.12,"Hickman Avenue Depot","5085","Materials","22/08/2019"
"Wolverhampton City Council","http://opendatacommunities.org/id/metropolitan-district-council/wolverhampton","TIMPSON LTD",28,"Transportation General","7251","Fixtures and Fittings - R&M","22/08/2019"
"Wolverhampton City Council","http://opendatacommunities.org/id/metropolitan-district-council/wolverhampton","Trainline.com",8.9,"Head of Strategic Commissioning � People","4112","Public Transport","22/08/2019"
"Wolverhampton City Council","http://opendatacommunities.org/id/metropolitan-district-council/wolverhampton","AMZNMktplace",27.49,"Environmental Crime and Consumer Protect","5999","Equipment - Purchase","22/08/2019"
"Wolverhampton City Council","http://opendatacommunities.org/id/metropolitan-district-council/wolverhampton","AMZNMKTPLACE AMAZON.CO",11.48,"Community Enablement","5999","R4007","22/08/2019"
"Wolverhampton City Council","http://opendatacommunities.org/id/metropolitan-district-council/wolverhampton","CITY OF WOLVERHAMPTON",16,"Head of Service - CINCP","9399","Services - Fees and Charges","22/08/2019"
"Wolverhampton City Council","http://opendatacommunities.org/id/metropolitan-district-council/wolverhampton","CAR & COMMERCIAL D",60,"Fleet Management","5013","R4000","22/08/2019"
"Wolverhampton City Council","http://opendatacommunities.org/id/metropolitan-district-council/wolverhampton","Amazon.co.uk MH24O6IT4",12.58,"Archives","5969","Books","22/08/2019"
"Wolverhampton City Council","http://opendatacommunities.org/id/metropolitan-district-council/wolverhampton","ASDA GROCERIES ONLINE",-1.44,"Key to Inspiration","5411","Provisions (Not for resale)","22/08/2019"
"Wolverhampton City Council","http://opendatacommunities.org/id/metropolitan-district-council/wolverhampton","ASDA GROCERIES ONLINE",188.99,"Key to Inspiration","5411","Provisions (Not for resale)","22/08/2019"
"Wolverhampton City Council","http://opendatacommunities.org/id/metropolitan-district-council/wolverhampton","Amazon.co.uk MA7Z46FP4",30,"Strategic ICTS (ICT Serv Budget)","5969","Materials","22/08/2019"
"Wolverhampton City Council","http://opendatacommunities.org/id/metropolitan-district-council/wolverhampton","Amazon.co.uk MA4V60OY4",75,"Document Centre - General","5969","Materials","22/08/2019"
"Wolverhampton City Council","http://opendatacommunities.org/id/metropolitan-district-council/wolverhampton","WWW.ICELAND.CO.UK",41.2,"Bradley Resource Centre","5411","Provisions (Not for resale)","21/08/2019"
"Wolverhampton City Council","http://opendatacommunities.org/id/metropolitan-district-council/wolverhampton","AMZNMKTPLACE AMAZON.CO",37.29,"IMPACT","5999","Equipment - Purchase","21/08/2019"
"Wolverhampton City Council","http://opendatacommunities.org/id/metropolitan-district-council/wolverhampton","AMZNMKTPLACE AMAZON.CO",15.53,"Adult Services - West","5999","R4000","21/08/2019"
"Wolverhampton City Council","http://opendatacommunities.org/id/metropolitan-district-council/wolverhampton","BEATSABAR MUSIC PROJEC",284.94,"Youth Offending Team","5733","Equipment - Purchase","21/08/2019"
"Wolverhampton City Council","http://opendatacommunities.org/id/metropolitan-district-council/wolverhampton","BEATSABAR MUSIC PROJEC",142.47,"Youth Offending Team","5733","Equipment - Purchase","21/08/2019"
"Wolverhampton City Council","http://opendatacommunities.org/id/metropolitan-district-council/wolverhampton","ALDI 48 772",4.16,"LAC Transitions Team","5411","Client Allowances","21/08/2019"
"Wolverhampton City Council","http://opendatacommunities.org/id/metropolitan-district-council/wolverhampton","HARVESTER AYLESBUR",10,"LAC Transitions Team","5812","Client Allowances","21/08/2019"
"Wolverhampton City Council","http://opendatacommunities.org/id/metropolitan-district-council/wolverhampton","ALDI 48 772",4.16,"LAC Transitions Team","5411","Client Allowances","21/08/2019"
"Wolverhampton City Council","http://opendatacommunities.org/id/metropolitan-district-council/wolverhampton","Trainline.com",18.77,"Register Office","4112","Public Transport","21/08/2019"
"Wolverhampton City Council","http://opendatacommunities.org/id/metropolitan-district-council/wolverhampton","DUDLEY MBC  INTERN",300,"Education Business Partnership","8999","Services - Professional Fees","21/08/2019"
"Wolverhampton City Council","http://opendatacommunities.org/id/metropolitan-district-council/wolverhampton","WWW.UK-GO-KARTING.COM",171,"Youth Offending Team","7999","Educ Trips, Holidays, Outings, Activity","21/08/2019"
"Wolverhampton City Council","http://opendatacommunities.org/id/metropolitan-district-council/wolverhampton","Amazon.co.uk MA9TR5CC4",36.65,"EIP Locality 6","5969","Accommodation Costs","21/08/2019"
"Wolverhampton City Council","http://opendatacommunities.org/id/metropolitan-district-council/wolverhampton","CITY OF WOLVERHAMPTON",13.33,"LAC Transitions Team","9399","Client Allowances","21/08/2019"
"Wolverhampton City Council","http://opendatacommunities.org/id/metropolitan-district-council/wolverhampton","W HAMPTON1109",49.97,"Public Conveniences","5211","Materials","21/08/2019"
"Wolverhampton City Council","http://opendatacommunities.org/id/metropolitan-district-council/wolverhampton","Amazon Prime MA7406CR4",6.66,"Bert Williams Leisure Centre","5968","Accommodation Costs","21/08/2019"
"Wolverhampton City Council","http://opendatacommunities.org/id/metropolitan-district-council/wolverhampton","AMZNMKTPLACE AMAZON.CO",28.25,"Bert Williams Leisure Centre","5999","Accommodation Costs","21/08/2019"
"Wolverhampton City Council","http://opendatacommunities.org/id/metropolitan-district-council/wolverhampton","AMZNMKTPLACE AMAZON.CO",58.24,"Bert Williams Leisure Centre","5999","Accommodation Costs","21/08/2019"
"Wolverhampton City Council","http://opendatacommunities.org/id/metropolitan-district-council/wolverhampton","AMZNMKTPLACE AMAZON.CO",49.99,"Central Baths","5999","Equipment - Purchase","21/08/2019"
"Wolverhampton City Council","http://opendatacommunities.org/id/metropolitan-district-council/wolverhampton","AMZNMKTPLACE AMAZON.CO",5.82,"Bert Williams Leisure Centre","5999","Accommodation Costs","21/08/2019"
"Wolverhampton City Council","http://opendatacommunities.org/id/metropolitan-district-council/wolverhampton","AMZNMKTPLACE AMAZON.CO",49.99,"Mayor's Charity","5999","Accommodation Costs","21/08/2019"
"Wolverhampton City Council","http://opendatacommunities.org/id/metropolitan-district-council/wolverhampton","TIPPERS WOLVERHAMPTON",17.98,"Hickman Avenue Depot","5072","R4007","21/08/2019"
"Wolverhampton City Council","http://opendatacommunities.org/id/metropolitan-district-council/wolverhampton","WWW.WOLVERHAMPTON.GOV.",471.6,"LAC Transitions Team","9399","Accommodation Costs","21/08/2019"
"Wolverhampton City Council","http://opendatacommunities.org/id/metropolitan-district-council/wolverhampton","WWW.WOLVERHAMPTON.GOV.",331.6,"LAC Transitions Team","9399","Accommodation Costs","21/08/2019"
"Wolverhampton City Council","http://opendatacommunities.org/id/metropolitan-district-council/wolverhampton","WWW.WOLVERHAMPTON.GOV.",304.72,"LAC Transitions Team","9399","Accommodation Costs","21/08/2019"
"Wolverhampton City Council","http://opendatacommunities.org/id/metropolitan-district-council/wolverhampton","WWW.WOLVERHAMPTON.GOV.",466.14,"LAC Transitions Team","9399","Accommodation Costs","21/08/2019"
"Wolverhampton City Council","http://opendatacommunities.org/id/metropolitan-district-council/wolverhampton","POST OFFICE COUNTER",6.6,"LAC Team","9402","Comms - Postage","21/08/2019"
"Wolverhampton City Council","http://opendatacommunities.org/id/metropolitan-district-council/wolverhampton","FS160 CLAREGATE",6.22,"Duke Street Bungalows","5541","Equipment - R & M","21/08/2019"
"Wolverhampton City Council","http://opendatacommunities.org/id/metropolitan-district-council/wolverhampton","ROYAL SOCIETY FOR",120,"Food and Health & Safety","8398","Training Expenses","21/08/2019"
"Wolverhampton City Council","http://opendatacommunities.org/id/metropolitan-district-council/wolverhampton","TVLICENSING.CO.UK",154.5,"Duke Street Bungalows","7392","Services - General Licences","21/08/2019"
"Wolverhampton City Council","http://opendatacommunities.org/id/metropolitan-district-council/wolverhampton","WWW.ARGOS.CO.UK",14.77,"EIP Locality 7","5310","Grant Payments","21/08/2019"
"Wolverhampton City Council","http://opendatacommunities.org/id/metropolitan-district-council/wolverhampton","GEN REGISTER OFFICE",14,"Mental Health Assessment & Care Mgmt","9399","Services - Fees and Charges","21/08/2019"
"Wolverhampton City Council","http://opendatacommunities.org/id/metropolitan-district-council/wolverhampton","AMZNMKTPLACE AMAZON.CO",3124.8,"Strategic ICTS (ICT Serv Budget)","5999","Comms - Mobile Telephones","20/08/2019"
"Wolverhampton City Council","http://opendatacommunities.org/id/metropolitan-district-council/wolverhampton","AMZNMktplace",10.49,"Archives","5999","Materials for resale","20/08/2019"
"Wolverhampton City Council","http://opendatacommunities.org/id/metropolitan-district-council/wolverhampton","ASDA GROCERIES ONLINE",140.34,"Bradley Resource Centre","5411","Provisions (Not for resale)","20/08/2019"
"Wolverhampton City Council","http://opendatacommunities.org/id/metropolitan-district-council/wolverhampton","GOOGLE  ADS6872419364",500,"Communications & Marketing - General","7311","Marketing \ Non-staff advertising","20/08/2019"
"Wolverhampton City Council","http://opendatacommunities.org/id/metropolitan-district-council/wolverhampton","AMZNMKTPLACE AMAZON.CO",64.75,"Strategic ICTS (ICT Serv Budget)","5999","Computing - Consumables","20/08/2019"
"Wolverhampton City Council","http://opendatacommunities.org/id/metropolitan-district-council/wolverhampton","highstreetvouchers",304.25,"IMPACT","8641","Educ Trips, Holidays, Outings, Activity","20/08/2019"
"Wolverhampton City Council","http://opendatacommunities.org/id/metropolitan-district-council/wolverhampton","MATALAN",58,"IMPACT","5691","Equipment - Purchase","20/08/2019"
"Wolverhampton City Council","http://opendatacommunities.org/id/metropolitan-district-council/wolverhampton","MATALAN",53.83,"IMPACT","5691","Equipment - Purchase","20/08/2019"
"Wolverhampton City Council","http://opendatacommunities.org/id/metropolitan-district-council/wolverhampton","BRITANNIA",149,"Destitute Plus","7011","No Recourse to Public Funds","20/08/2019"
"Wolverhampton City Council","http://opendatacommunities.org/id/metropolitan-district-council/wolverhampton","WM MORRISONS STORE",22.5,"LAC Transitions Team","5411","Client Allowances","20/08/2019"
"Wolverhampton City Council","http://opendatacommunities.org/id/metropolitan-district-council/wolverhampton","WM MORRISONS STORE",6.72,"Regional Adoption Agency","5411","Provisions (Not for resale)","20/08/2019"
"Wolverhampton City Council","http://opendatacommunities.org/id/metropolitan-district-council/wolverhampton","GOOGLE  ADS9680351324",500,"Communications & Marketing - General","5968","Subscriptions","20/08/2019"
"Wolverhampton City Council","http://opendatacommunities.org/id/metropolitan-district-council/wolverhampton","BRITANNIA",133.33,"Destitute Plus","7011","No Recourse to Public Funds","20/08/2019"
"Wolverhampton City Council","http://opendatacommunities.org/id/metropolitan-district-council/wolverhampton","NAMESCO",13.99,"City Direct","4816","Computing - Purchase of Software","20/08/2019"
"Wolverhampton City Council","http://opendatacommunities.org/id/metropolitan-district-council/wolverhampton","NATWEST BANK",200,"Court Team","6011","Section 17","20/08/2019"
"Wolverhampton City Council","http://opendatacommunities.org/id/metropolitan-district-council/wolverhampton","Trainline.com",-81.3,"LAC Transitions Team","4112","Accommodation Costs","20/08/2019"
"Wolverhampton City Council","http://opendatacommunities.org/id/metropolitan-district-council/wolverhampton","AMZNMktplace",37.97,"Central Baths","5999","Equipment - Purchase","20/08/2019"
"Wolverhampton City Council","http://opendatacommunities.org/id/metropolitan-district-council/wolverhampton","DRAYTON MANOR THEME PA",136.5,"Upper Pendeford Farm Childrens Home","7999","Educ Trips, Holidays, Outings, Activity","20/08/2019"
"Wolverhampton City Council","http://opendatacommunities.org/id/metropolitan-district-council/wolverhampton","CITY OF WOLVERHAMPTON",16,"Looked After Team 2","9399","Financial Assistance In Exceptional Circ","20/08/2019"
"Wolverhampton City Council","http://opendatacommunities.org/id/metropolitan-district-council/wolverhampton","Virgin Trains",34.1,"Looked After Team 2","4112","Public Transport","20/08/2019"
"Wolverhampton City Council","http://opendatacommunities.org/id/metropolitan-district-council/wolverhampton","ASDA GROCERIES ONLINE",5,"Bradley Resource Centre","5411","Provisions (Not for resale)","20/08/2019"
"Wolverhampton City Council","http://opendatacommunities.org/id/metropolitan-district-council/wolverhampton","ASDA SUPERSTORE",10.89,"EIP Locality 5","5411","R4000","20/08/2019"
"Wolverhampton City Council","http://opendatacommunities.org/id/metropolitan-district-council/wolverhampton","FACEBK 2FQGJLJC22",372.7,"Business Support Services","7311","Marketing \ Non-staff advertising","20/08/2019"
"Wolverhampton City Council","http://opendatacommunities.org/id/metropolitan-district-council/wolverhampton","B&M RETAIL",29.97,"LAC Transitions Team","5310","Client Allowances","20/08/2019"
"Wolverhampton City Council","http://opendatacommunities.org/id/metropolitan-district-council/wolverhampton","B&M RETAIL",37.48,"LAC Transitions Team","5310","Client Allowances","20/08/2019"
"Wolverhampton City Council","http://opendatacommunities.org/id/metropolitan-district-council/wolverhampton","ASDA STORES",17.5,"LAC Transitions Team","5411","Client Allowances","20/08/2019"
"Wolverhampton City Council","http://opendatacommunities.org/id/metropolitan-district-council/wolverhampton","ARGOS LTD",195.82,"LAC Transitions Team","5310","Accommodation Costs","20/08/2019"
"Wolverhampton City Council","http://opendatacommunities.org/id/metropolitan-district-council/wolverhampton","LOYD 37 CHURCH STREET",100,"Duke Street Bungalows","6011","Provisions (Not for resale)","20/08/2019"
"Wolverhampton City Council","http://opendatacommunities.org/id/metropolitan-district-council/wolverhampton","B & Q 1243",4.97,"Bradley Resource Centre","5200","Equipment - R & M","20/08/2019"
"Wolverhampton City Council","http://opendatacommunities.org/id/metropolitan-district-council/wolverhampton","ASDA GROCERIES ONLINE",-0.26,"Ernest Bold Court","5411","Provisions (Not for resale)","20/08/2019"
"Wolverhampton City Council","http://opendatacommunities.org/id/metropolitan-district-council/wolverhampton","ASDA GROCERIES ONLINE",59.76,"Ernest Bold Court","5411","Provisions (Not for resale)","20/08/2019"
"Wolverhampton City Council","http://opendatacommunities.org/id/metropolitan-district-council/wolverhampton","EVERSHEDS SUTHERLAND I",13.5,"Central Training","8111","Training Expenses","20/08/2019"
"Wolverhampton City Council","http://opendatacommunities.org/id/metropolitan-district-council/wolverhampton","TFM FARM   COUNTRY",244.86,"Northicote Farm","0763","Accommodation Costs","20/08/2019"
"Wolverhampton City Council","http://opendatacommunities.org/id/metropolitan-district-council/wolverhampton","BRITANNIA",79.17,"Mayor's Charity","7011","Accommodation Costs","19/08/2019"
"Wolverhampton City Council","http://opendatacommunities.org/id/metropolitan-district-council/wolverhampton","WICKES WOLVERHAMPTON",51.16,"Northicote Farm","5211","Materials","19/08/2019"
"Wolverhampton City Council","http://opendatacommunities.org/id/metropolitan-district-council/wolverhampton","TFM FARM   COUNTRY",219.8,"Northicote Farm","0763","Protective Clothing","19/08/2019"
"Wolverhampton City Council","http://opendatacommunities.org/id/metropolitan-district-council/wolverhampton","AMZNMKTPLACE AMAZON.CO",25.98,"Strategic ICTS (ICT Serv Budget)","5999","Computing - Purchase of Hardware","19/08/2019"
"Wolverhampton City Council","http://opendatacommunities.org/id/metropolitan-district-council/wolverhampton","WH SMITH",4.2,"Key to Inspiration","5994","Comms - Postage","19/08/2019"
"Wolverhampton City Council","http://opendatacommunities.org/id/metropolitan-district-council/wolverhampton","ASDA GROCERIES ONLINE",-3.39,"Bradley Resource Centre","5411","Provisions (Not for resale)","19/08/2019"
"Wolverhampton City Council","http://opendatacommunities.org/id/metropolitan-district-council/wolverhampton","Amazon.co.uk MH3FM4IW4",44.99,"Archives","5969","Computing - Purchase of Hardware","19/08/2019"
"Wolverhampton City Council","http://opendatacommunities.org/id/metropolitan-district-council/wolverhampton","ASDA GROCERIES ONLINE",137.64,"Bradley Resource Centre","5411","Provisions (Not for resale)","19/08/2019"
"Wolverhampton City Council","http://opendatacommunities.org/id/metropolitan-district-council/wolverhampton","AMZNMKTPLACE AMAZON.CO",5.59,"Archives","5999","Books","19/08/2019"
"Wolverhampton City Council","http://opendatacommunities.org/id/metropolitan-district-council/wolverhampton","Amazon.co.uk MH0SQ7WK4",30,"Document Centre - General","5969","Materials","19/08/2019"
"Wolverhampton City Council","http://opendatacommunities.org/id/metropolitan-district-council/wolverhampton","Amazon.co.uk MH5WJ1R84",14.95,"Archives","5969","Books","19/08/2019"
"Wolverhampton City Council","http://opendatacommunities.org/id/metropolitan-district-council/wolverhampton","LOYD 37 CHURCH STREET",400,"EIP Locality 8","6011","Accommodation Costs","19/08/2019"
"Wolverhampton City Council","http://opendatacommunities.org/id/metropolitan-district-council/wolverhampton","VUE ITCERTIFICATIONVUE",113,"Strategic ICTS (ICT Serv Budget)","8299","Training Expenses","19/08/2019"
"Wolverhampton City Council","http://opendatacommunities.org/id/metropolitan-district-council/wolverhampton","NATWEST BANK",250,"NRPF","6011","Financial Assistance In Exceptional Circ","19/08/2019"
"Wolverhampton City Council","http://opendatacommunities.org/id/metropolitan-district-council/wolverhampton","CUMMINGS BROTHERS LOCK",44,"Adult Services - West","7399","Storage","19/08/2019"
"Wolverhampton City Council","http://opendatacommunities.org/id/metropolitan-district-council/wolverhampton","NATWEST BANK",70,"Court Team","6011","Section 17","19/08/2019"
"Wolverhampton City Council","http://opendatacommunities.org/id/metropolitan-district-council/wolverhampton","Central Taxis Limited",6.6,"LAC Education Team (LACE)","4121","Client Transport","19/08/2019"
"Wolverhampton City Council","http://opendatacommunities.org/id/metropolitan-district-council/wolverhampton","ASDA SUPERSTORE",10.58,"Youth Offending Team","5411","Provisions (Not for resale)","19/08/2019"
"Wolverhampton City Council","http://opendatacommunities.org/id/metropolitan-district-council/wolverhampton","GO APE",-8,"Youth Offending Team","7996","Educ Trips, Holidays, Outings, Activity","19/08/2019"
"Wolverhampton City Council","http://opendatacommunities.org/id/metropolitan-district-council/wolverhampton","Trainline",95.49,"LAC Transitions Team","4112","Accommodation Costs","19/08/2019"
"Wolverhampton City Council","http://opendatacommunities.org/id/metropolitan-district-council/wolverhampton","SAINSBURYS PFS (1340)",33.33,"Mayoral Expenses","5541","Petrol","19/08/2019"
"Wolverhampton City Council","http://opendatacommunities.org/id/metropolitan-district-council/wolverhampton","Trainline.com",94.42,"LAC Transitions Team","4112","Accommodation Costs","19/08/2019"
"Wolverhampton City Council","http://opendatacommunities.org/id/metropolitan-district-council/wolverhampton","CUMMINGS BROTHERS LOCK",45,"Caretakers Community Centre","7399","Equipment - Purchase","19/08/2019"
"Wolverhampton City Council","http://opendatacommunities.org/id/metropolitan-district-council/wolverhampton","ASDA GROCERIES ONLINE",-1.86,"Upper Pendeford Farm Childrens Home","5411","Provisions (Not for resale)","19/08/2019"
"Wolverhampton City Council","http://opendatacommunities.org/id/metropolitan-district-council/wolverhampton","AMZNMktplace",20.99,"EIP Locality 3","5999","Equipment - Purchase","19/08/2019"
"Wolverhampton City Council","http://opendatacommunities.org/id/metropolitan-district-council/wolverhampton","WISEPOPS",91.02,"City Direct","7372","Computing - Purchase of Software","19/08/2019"
"Wolverhampton City Council","http://opendatacommunities.org/id/metropolitan-district-council/wolverhampton","ASDA GROCERIES ONLINE",206.66,"Upper Pendeford Farm Childrens Home","5411","Provisions (Not for resale)","19/08/2019"
"Wolverhampton City Council","http://opendatacommunities.org/id/metropolitan-district-council/wolverhampton","ROOKERY Sainsburys Ba",100,"Duke Street Bungalows","6011","Provisions (Not for resale)","19/08/2019"
"Wolverhampton City Council","http://opendatacommunities.org/id/metropolitan-district-council/wolverhampton","ASDA GROCERIES ONLINE",200.92,"Duke Street Bungalows","5411","Provisions (Not for resale)","19/08/2019"
"Wolverhampton City Council","http://opendatacommunities.org/id/metropolitan-district-council/wolverhampton","ICELAND",0,"Carers Support","5411","Provisions (Not for resale)","19/08/2019"
"Wolverhampton City Council","http://opendatacommunities.org/id/metropolitan-district-council/wolverhampton","ASDA GROCERIES ONLINE",70.93,"Ernest Bold Court","5411","Provisions (Not for resale)","19/08/2019"
"Wolverhampton City Council","http://opendatacommunities.org/id/metropolitan-district-council/wolverhampton","HERON FOODS LTD",25.93,"Ernest Bold Court","5499","Provisions (Not for resale)","19/08/2019"
"Wolverhampton City Council","http://opendatacommunities.org/id/metropolitan-district-council/wolverhampton","SumUp   Birdi gifts",30,"Mayor's Charity","5999","Accommodation Costs","19/08/2019"
"Wolverhampton City Council","http://opendatacommunities.org/id/metropolitan-district-council/wolverhampton","ASDA GROCERIES ONLINE",247.83,"Duke Street Bungalows","5411","Provisions (Not for resale)","19/08/2019"
"Wolverhampton City Council","http://opendatacommunities.org/id/metropolitan-district-council/wolverhampton","Virgin Trains",262.05,"Private Sector Housing","4112","Services - Fees and Charges","19/08/2019"
"Wolverhampton City Council","http://opendatacommunities.org/id/metropolitan-district-council/wolverhampton","ASDA GROCERIES ONLINE",-1.25,"Duke Street Bungalows","5411","Provisions (Not for resale)","19/08/2019"
"Wolverhampton City Council","http://opendatacommunities.org/id/metropolitan-district-council/wolverhampton","CITY OF WOLVERHAMPTON",38,"Head of Service - CINCP","9399","Services - Fees and Charges","19/08/2019"
"Wolverhampton City Council","http://opendatacommunities.org/id/metropolitan-district-council/wolverhampton","PREMIER INN",352.5,"Children & Family Contact Services","3811","Accommodation Costs","19/08/2019"
"Wolverhampton City Council","http://opendatacommunities.org/id/metropolitan-district-council/wolverhampton","CUMMINGS BROTHERS LOCK",14.58,"Ernest Bold Court","7399","Equipment - Purchase","19/08/2019"
"Wolverhampton City Council","http://opendatacommunities.org/id/metropolitan-district-council/wolverhampton","Virgin Trains",39.6,"LAC Team","4112","Public Transport","16/08/2019"
"Wolverhampton City Council","http://opendatacommunities.org/id/metropolitan-district-council/wolverhampton","WICKES WOLVERHAMPTON",11.67,"Specialist Support Service - North","5211","Equipment - R & M","16/08/2019"
"Wolverhampton City Council","http://opendatacommunities.org/id/metropolitan-district-council/wolverhampton","Virgin Trains",44.17,"Children & Family Contact Services","4112","Public Transport","16/08/2019"
"Wolverhampton City Council","http://opendatacommunities.org/id/metropolitan-district-council/wolverhampton","AMZNMKTPLACE AMAZON.CO",46.95,"Northicote Farm","5999","Equipment - Purchase","16/08/2019"
"Wolverhampton City Council","http://opendatacommunities.org/id/metropolitan-district-council/wolverhampton","AMZNMKTPLACE AMAZON.CO",289.16,"Communications & Marketing - General","5999","Marketing \ Non-staff advertising","16/08/2019"
"Wolverhampton City Council","http://opendatacommunities.org/id/metropolitan-district-council/wolverhampton","WWW.THEWORKS.CO.UK",51.5,"Passenger Transport - General","5310","Equipment - Purchase","16/08/2019"
"Wolverhampton City Council","http://opendatacommunities.org/id/metropolitan-district-council/wolverhampton","NATWEST BANK",250,"NRPF","6011","Financial Assistance In Exceptional Circ","16/08/2019"
"Wolverhampton City Council","http://opendatacommunities.org/id/metropolitan-district-council/wolverhampton","B&M RETAIL LTD",36.98,"LAC Transitions Team","5310","Client Allowances","16/08/2019"
"Wolverhampton City Council","http://opendatacommunities.org/id/metropolitan-district-council/wolverhampton","ALBRIGHTON FEEDS LIMIT",45.5,"Bonfire","5995","Equipment - Purchase","16/08/2019"
"Wolverhampton City Council","http://opendatacommunities.org/id/metropolitan-district-council/wolverhampton","NATWEST BANK",200,"Court Team","6011","Section 17","16/08/2019"
"Wolverhampton City Council","http://opendatacommunities.org/id/metropolitan-district-council/wolverhampton","ARGOS RETAIL GROUP",-44.99,"Childrens with Disabilities Team","5310","Section 17","16/08/2019"
"Wolverhampton City Council","http://opendatacommunities.org/id/metropolitan-district-council/wolverhampton","AMZNMKTPLACE AMAZON.CO",16.22,"Regional Adoption Agency","5999","Equipment - Purchase","16/08/2019"
"Wolverhampton City Council","http://opendatacommunities.org/id/metropolitan-district-council/wolverhampton","POST OFFICE COUNTER",11,"Regional Adoption Agency","9402","Comms - Postage","16/08/2019"
"Wolverhampton City Council","http://opendatacommunities.org/id/metropolitan-district-council/wolverhampton","SCREWFIX DIRECT",71.9,"Aldersley Leisure Village","5200","Equipment - Purchase","16/08/2019"
"Wolverhampton City Council","http://opendatacommunities.org/id/metropolitan-district-council/wolverhampton","ASDA SUPERSTORE",23.33,"Youth Offending Team","5411","Provisions (Not for resale)","16/08/2019"
"Wolverhampton City Council","http://opendatacommunities.org/id/metropolitan-district-council/wolverhampton","POST OFFICE COUNTER",0.44,"LAC Team","9402","Comms - Postage","16/08/2019"
"Wolverhampton City Council","http://opendatacommunities.org/id/metropolitan-district-council/wolverhampton","B & Q 1243",22.57,"Public Conveniences","5200","Materials","16/08/2019"
"Wolverhampton City Council","http://opendatacommunities.org/id/metropolitan-district-council/wolverhampton","THEKINGSFERRY.COUK",390,"Private Hire Vehicles","4131","Public Transport","15/08/2019"
"Wolverhampton City Council","http://opendatacommunities.org/id/metropolitan-district-council/wolverhampton","LOYD 37 CHURCH STREET",80,"EIP Locality 8","6011","Accommodation Costs","15/08/2019"
"Wolverhampton City Council","http://opendatacommunities.org/id/metropolitan-district-council/wolverhampton","AARDVARK ART SERVICES",130,"Pop Gallery Space","4215","Comms - Postage","15/08/2019"
"Wolverhampton City Council","http://opendatacommunities.org/id/metropolitan-district-council/wolverhampton","AMZNMktplace",99.96,"Key to Inspiration","5999","Direct Work With Children","15/08/2019"
"Wolverhampton City Council","http://opendatacommunities.org/id/metropolitan-district-council/wolverhampton","ASDA GROCERIES ONLINE",56.62,"Bradley Resource Centre","5411","Provisions (Not for resale)","15/08/2019"
"Wolverhampton City Council","http://opendatacommunities.org/id/metropolitan-district-council/wolverhampton","WWW.UK.INSIGHT.COM",1249.98,"Keith Piper","5964","R4400","15/08/2019"
"Wolverhampton City Council","http://opendatacommunities.org/id/metropolitan-district-council/wolverhampton","WEST COAST TRAINS",19.8,"Technician","4112","Public Transport","15/08/2019"
"Wolverhampton City Council","http://opendatacommunities.org/id/metropolitan-district-council/wolverhampton","Premier Farnell",34.32,"Keith Piper","5065","R4400","15/08/2019"
"Wolverhampton City Council","http://opendatacommunities.org/id/metropolitan-district-council/wolverhampton","AMZNMKTPLACE AMAZON.CO",697.16,"Keith Piper","5999","Accommodation Costs","15/08/2019"
"Wolverhampton City Council","http://opendatacommunities.org/id/metropolitan-district-council/wolverhampton","PROJECTORPOINT.CO.UK",155,"Keith Piper","5065","Equipment - R & M","15/08/2019"
"Wolverhampton City Council","http://opendatacommunities.org/id/metropolitan-district-council/wolverhampton","LOYD 89 CHURCH STREET",40,"EIP Locality 2","6011","Grant Payments","15/08/2019"
"Wolverhampton City Council","http://opendatacommunities.org/id/metropolitan-district-council/wolverhampton","AMZNMktplace",4.51,"Regional Adoption Agency","5999","Equipment - Purchase","15/08/2019"
"Wolverhampton City Council","http://opendatacommunities.org/id/metropolitan-district-council/wolverhampton","AMZNMktplace",2.07,"Regional Adoption Agency","5999","Equipment - Purchase","15/08/2019"
"Wolverhampton City Council","http://opendatacommunities.org/id/metropolitan-district-council/wolverhampton","SAINSBURYS (2340)",12.15,"Mayoral Expenses","5411","Hospitality","15/08/2019"
"Wolverhampton City Council","http://opendatacommunities.org/id/metropolitan-district-council/wolverhampton","ITUNES.COM/BILL",2.07,"LAC Education Team (LACE)","5735","Computing - Purchase of Software","15/08/2019"
"Wolverhampton City Council","http://opendatacommunities.org/id/metropolitan-district-council/wolverhampton","Trainline.com",84.86,"LAC Transitions Team","4112","Public Transport","15/08/2019"
"Wolverhampton City Council","http://opendatacommunities.org/id/metropolitan-district-council/wolverhampton","POST OFFICE COUNTER",30.6,"LAC Team","9402","Comms - Postage","15/08/2019"
"Wolverhampton City Council","http://opendatacommunities.org/id/metropolitan-district-council/wolverhampton","Hotel on Booking.com T",67.9,"LAC Transitions Team","7011","Accommodation Costs","15/08/2019"
"Wolverhampton City Council","http://opendatacommunities.org/id/metropolitan-district-council/wolverhampton","Trainline.com",138.89,"LAC Transitions Team","4112","Accommodation Costs","15/08/2019"
"Wolverhampton City Council","http://opendatacommunities.org/id/metropolitan-district-council/wolverhampton","AMZNMKTPLACE AMAZON.CO",145.39,"Intensive Family Support Team","5999","Equipment - Purchase","15/08/2019"
"Wolverhampton City Council","http://opendatacommunities.org/id/metropolitan-district-council/wolverhampton","AMZNMktplace",23.99,"Intensive Family Support Team","5999","Equipment - Purchase","15/08/2019"
"Wolverhampton City Council","http://opendatacommunities.org/id/metropolitan-district-council/wolverhampton","ASDA GROCERIES ONLINE",5,"Upper Pendeford Farm Childrens Home","5411","Provisions (Not for resale)","15/08/2019"
"Wolverhampton City Council","http://opendatacommunities.org/id/metropolitan-district-council/wolverhampton","CITY OF WOLVERHAMPTON",17,"Looked After Team 2","9399","Services - Fees and Charges","15/08/2019"
"Wolverhampton City Council","http://opendatacommunities.org/id/metropolitan-district-council/wolverhampton","PLAYTHERAPYSUPPLY.COM",1863.76,"Mental Health Assessment & Care Mgmt","5945","Equipment - Purchase","15/08/2019"
"Wolverhampton City Council","http://opendatacommunities.org/id/metropolitan-district-council/wolverhampton","Kindle Svcs",-0.99,"Telecare","5735","Books","15/08/2019"
"Wolverhampton City Council","http://opendatacommunities.org/id/metropolitan-district-council/wolverhampton","Kindle Svcs MH6CC0U24",0.99,"Telecare","5735","Books","15/08/2019"
"Wolverhampton City Council","http://opendatacommunities.org/id/metropolitan-district-council/wolverhampton","CardtronicsUK",200.95,"MASH","6011","Section 17","15/08/2019"
"Wolverhampton City Council","http://opendatacommunities.org/id/metropolitan-district-council/wolverhampton","AMZNMktplace",9.57,"Community Enablement","5999","Materials","15/08/2019"
"Wolverhampton City Council","http://opendatacommunities.org/id/metropolitan-district-council/wolverhampton","SCREWFIX DIRECT",94.8,"Technical Support","5200","Clothing / Uniforms","15/08/2019"
"Wolverhampton City Council","http://opendatacommunities.org/id/metropolitan-district-council/wolverhampton","CARESHOP",20.67,"Bradley Resource Centre","5999","Cleaning Supplies and Materials","15/08/2019"
"Wolverhampton City Council","http://opendatacommunities.org/id/metropolitan-district-council/wolverhampton","AMZNMktplace",8.32,"Community Enablement","5999","Materials","15/08/2019"
"Wolverhampton City Council","http://opendatacommunities.org/id/metropolitan-district-council/wolverhampton","WWW.CILEX LAW SC.AC.UK",66,"Central Training","8241","Training Expenses","15/08/2019"
"Wolverhampton City Council","http://opendatacommunities.org/id/metropolitan-district-council/wolverhampton","WWW.SOLACE.ORG.UK",75,"Central Training","8699","Training Expenses","15/08/2019"
"Wolverhampton City Council","http://opendatacommunities.org/id/metropolitan-district-council/wolverhampton","WEST MID TRAVEL",236.35,"Central Training","4131","Public Transport","15/08/2019"
"Wolverhampton City Council","http://opendatacommunities.org/id/metropolitan-district-council/wolverhampton","HMCOURTS-SERVICE.G",-151,"Mental Health Assessment & Care Mgmt","9222","Services - Fees and Charges","15/08/2019"
"Wolverhampton City Council","http://opendatacommunities.org/id/metropolitan-district-council/wolverhampton","ASDA GROCERIES ONLINE",1.04,"Key to Inspiration","5411","Provisions (Not for resale)","14/08/2019"
"Wolverhampton City Council","http://opendatacommunities.org/id/metropolitan-district-council/wolverhampton","ASDA GROCERIES ONLINE",180.5,"Key to Inspiration","5411","Provisions (Not for resale)","14/08/2019"
"Wolverhampton City Council","http://opendatacommunities.org/id/metropolitan-district-council/wolverhampton","DAVIES TIMBER LTD",117.79,"Keith Piper","5211","R4400","14/08/2019"
"Wolverhampton City Council","http://opendatacommunities.org/id/metropolitan-district-council/wolverhampton","MYMEMORY LTD",219.44,"Keith Piper","5732","Accommodation Costs","14/08/2019"
"Wolverhampton City Council","http://opendatacommunities.org/id/metropolitan-district-council/wolverhampton","JACKS CAFE & BAR LTD",3.1,"Youth Offending Team","5812","Educ Trips, Holidays, Outings, Activity","14/08/2019"
"Wolverhampton City Council","http://opendatacommunities.org/id/metropolitan-district-council/wolverhampton","Virgin Trains",192.55,"Regional Adoption Agency","4112","Public Transport","14/08/2019"
"Wolverhampton City Council","http://opendatacommunities.org/id/metropolitan-district-council/wolverhampton","WWW.PURE-SPA.CO.UK",143.92,"Aldersley Leisure Village","5999","Equipment - Purchase","14/08/2019"
"Wolverhampton City Council","http://opendatacommunities.org/id/metropolitan-district-council/wolverhampton","FACEBK 7VSR4MWAR2",-10.08,"Communications & Marketing - General","7311","Marketing \ Non-staff advertising","14/08/2019"
"Wolverhampton City Council","http://opendatacommunities.org/id/metropolitan-district-council/wolverhampton","GO APE",167.5,"Youth Offending Team","7996","Educ Trips, Holidays, Outings, Activity","14/08/2019"
"Wolverhampton City Council","http://opendatacommunities.org/id/metropolitan-district-council/wolverhampton","B&M RETAIL LTD",8,"Cemeteries","5310","Equipment - Purchase","14/08/2019"
"Wolverhampton City Council","http://opendatacommunities.org/id/metropolitan-district-council/wolverhampton","HOME BARGAINS",104.38,"Cemeteries","5251","Equipment - Purchase","14/08/2019"
"Wolverhampton City Council","http://opendatacommunities.org/id/metropolitan-district-council/wolverhampton","SAINSBURYS 2040",2.62,"Cemeteries","5411","Provisions (Not for resale)","14/08/2019"
"Wolverhampton City Council","http://opendatacommunities.org/id/metropolitan-district-council/wolverhampton","CardtronicsUK",60,"Intensive Family Support Team","6011","Financial Assistance In Exceptional Circ","14/08/2019"
"Wolverhampton City Council","http://opendatacommunities.org/id/metropolitan-district-council/wolverhampton","WWW.ARGOS.CO.UK",324.5,"LAC Transitions Team","5310","Accommodation Costs","14/08/2019"
"Wolverhampton City Council","http://opendatacommunities.org/id/metropolitan-district-council/wolverhampton","SAINSBURYS 2040",48.62,"LAC Transitions Team","5411","Accommodation Costs","14/08/2019"
"Wolverhampton City Council","http://opendatacommunities.org/id/metropolitan-district-council/wolverhampton","ROYAL CARPETS",125,"LAC Transitions Team","5713","Accommodation Costs","14/08/2019"
"Wolverhampton City Council","http://opendatacommunities.org/id/metropolitan-district-council/wolverhampton","CAFE METRO",150,"Strategic Asset Management - General","5812","Accommodation Costs","14/08/2019"
"Wolverhampton City Council","http://opendatacommunities.org/id/metropolitan-district-council/wolverhampton","Trainline.com",39.63,"Mayor's Charity","4112","Accommodation Costs","14/08/2019"
"Wolverhampton City Council","http://opendatacommunities.org/id/metropolitan-district-council/wolverhampton","SAINSBURYS 2040",8.4,"Duke Street Bungalows","5411","R4010","14/08/2019"
"Wolverhampton City Council","http://opendatacommunities.org/id/metropolitan-district-council/wolverhampton","WWW.BACKCS.CO.UK",150,"Head of Strategic Commissioning � People","5047","Accommodation Costs","14/08/2019"
"Wolverhampton City Council","http://opendatacommunities.org/id/metropolitan-district-council/wolverhampton","WWW.DMCL.CO.UK",291,"Head of Strategic Commissioning � People","5732","Accommodation Costs","14/08/2019"
"Wolverhampton City Council","http://opendatacommunities.org/id/metropolitan-district-council/wolverhampton","AMZNMKTPLACE AMAZON.CO",166.66,"Head of Strategic Commissioning � People","5999","Accommodation Costs","14/08/2019"
"Wolverhampton City Council","http://opendatacommunities.org/id/metropolitan-district-council/wolverhampton","AMZNMktplace",18.56,"Global Budgets","5999","Accommodation Costs","14/08/2019"
"Wolverhampton City Council","http://opendatacommunities.org/id/metropolitan-district-council/wolverhampton","Amazon.co.uk MH7AC69V4",11.86,"Global Budgets","5969","Accommodation Costs","14/08/2019"
"Wolverhampton City Council","http://opendatacommunities.org/id/metropolitan-district-council/wolverhampton","123 REG R/T",23.98,"Art Gallery","5968","Subscriptions","14/08/2019"
"Wolverhampton City Council","http://opendatacommunities.org/id/metropolitan-district-council/wolverhampton","ASDA GROCERIES ONLINE",70.82,"Ernest Bold Court","5411","Provisions (Not for resale)","14/08/2019"
"Wolverhampton City Council","http://opendatacommunities.org/id/metropolitan-district-council/wolverhampton","AMZNMKTPLACE AMAZON.CO",10.82,"Community Enablement","5999","Materials","14/08/2019"
"Wolverhampton City Council","http://opendatacommunities.org/id/metropolitan-district-council/wolverhampton","HMCOURTS-SERVICE.G",226,"Mental Health Assessment & Care Mgmt","9222","Services - Fees and Charges","14/08/2019"
"Wolverhampton City Council","http://opendatacommunities.org/id/metropolitan-district-council/wolverhampton","CITY OF WOLVERHAMPTON",40,"Head of Service - CINCP","9399","Services - Fees and Charges","14/08/2019"
"Wolverhampton City Council","http://opendatacommunities.org/id/metropolitan-district-council/wolverhampton","WOLVERHAMPTON HOTEL",180,"Destitute Plus","7011","Accommodation Costs","14/08/2019"
"Wolverhampton City Council","http://opendatacommunities.org/id/metropolitan-district-council/wolverhampton","AMZNMKTPLACE AMAZON.CO",18.74,"Communications & Marketing - General","5999","Computing - Consumables","13/08/2019"
"Wolverhampton City Council","http://opendatacommunities.org/id/metropolitan-district-council/wolverhampton","Virgin Trains",99.4,"Safeguarding Admin Resource","4112","Public Transport","13/08/2019"
"Wolverhampton City Council","http://opendatacommunities.org/id/metropolitan-district-council/wolverhampton","GLASDON U K LTD",436.35,"Civic Centre","7399","Equipment - R & M","13/08/2019"
"Wolverhampton City Council","http://opendatacommunities.org/id/metropolitan-district-council/wolverhampton","ASDA GROCERIES ONLINE",-0.5,"Bradley Resource Centre","5411","Provisions (Not for resale)","13/08/2019"
"Wolverhampton City Council","http://opendatacommunities.org/id/metropolitan-district-council/wolverhampton","ASDA GROCERIES ONLINE",110.26,"Bradley Resource Centre","5411","Provisions (Not for resale)","13/08/2019"
"Wolverhampton City Council","http://opendatacommunities.org/id/metropolitan-district-council/wolverhampton","LOYD 89 CHURCH STREET",200,"EIP Locality 2","6011","Grant Payments","13/08/2019"
"Wolverhampton City Council","http://opendatacommunities.org/id/metropolitan-district-council/wolverhampton","WWW.DIRECTVACUUMS.CO.U",82.99,"Landscape","5065","Equipment - R & M","13/08/2019"
"Wolverhampton City Council","http://opendatacommunities.org/id/metropolitan-district-council/wolverhampton","AMZNMKTPLACE AMAZON.CO",15.82,"Regional Adoption Agency","5999","Equipment - Purchase","13/08/2019"
"Wolverhampton City Council","http://opendatacommunities.org/id/metropolitan-district-council/wolverhampton","POST OFFICE COUNTER",295,"Regional Adoption Agency","9402","Comms - Postage","13/08/2019"
"Wolverhampton City Council","http://opendatacommunities.org/id/metropolitan-district-council/wolverhampton","CENTRAL BATHS",10,"Youth Offending Team","8299","Training Expenses","13/08/2019"
"Wolverhampton City Council","http://opendatacommunities.org/id/metropolitan-district-council/wolverhampton","NATWEST BANK",200,"NRPF","6011","No Recourse to Public Funds","13/08/2019"
"Wolverhampton City Council","http://opendatacommunities.org/id/metropolitan-district-council/wolverhampton","WOLF MOUNTAIN ACTIVITY",56.67,"Youth Offending Team","7999","Educ Trips, Holidays, Outings, Activity","13/08/2019"
"Wolverhampton City Council","http://opendatacommunities.org/id/metropolitan-district-council/wolverhampton","QUEENSWAY INTERIOR",104.17,"LAC Transitions Team","5712","Client Allowances","13/08/2019"
"Wolverhampton City Council","http://opendatacommunities.org/id/metropolitan-district-council/wolverhampton","Trainline.com",65.02,"CIN/CP Social Work Unit - Area 4","4112","Public Transport","13/08/2019"
"Wolverhampton City Council","http://opendatacommunities.org/id/metropolitan-district-council/wolverhampton","SCREWFIX DIRECT",67.25,"Private Sector Housing","5211","Accommodation Costs","13/08/2019"
"Wolverhampton City Council","http://opendatacommunities.org/id/metropolitan-district-council/wolverhampton","Virgin Trains",105.2,"HRA General","4112","Accommodation Costs","13/08/2019"
"Wolverhampton City Council","http://opendatacommunities.org/id/metropolitan-district-council/wolverhampton","ASDA GROCERIES ONLINE",-0.02,"Ernest Bold Court","5411","Provisions (Not for resale)","12/08/2019"
"Wolverhampton City Council","http://opendatacommunities.org/id/metropolitan-district-council/wolverhampton","ASDA GROCERIES ONLINE",47.83,"Ernest Bold Court","5411","Provisions (Not for resale)","12/08/2019"
"Wolverhampton City Council","http://opendatacommunities.org/id/metropolitan-district-council/wolverhampton","ARGOS LTD",54.16,"LAC Transitions Team","5310","Client Allowances","12/08/2019"
"Wolverhampton City Council","http://opendatacommunities.org/id/metropolitan-district-council/wolverhampton","Trainline",41.51,"CIN/CP Social Work Unit - Area 4","4112","Section 17","12/08/2019"
"Wolverhampton City Council","http://opendatacommunities.org/id/metropolitan-district-council/wolverhampton","EBUYER (UK) LTD",270.96,"Welfare Rights","5722","Stationery","12/08/2019"
"Wolverhampton City Council","http://opendatacommunities.org/id/metropolitan-district-council/wolverhampton","VW VAN CENTRE",56,"Fleet Management","5511","Accommodation Costs","12/08/2019"
"Wolverhampton City Council","http://opendatacommunities.org/id/metropolitan-district-council/wolverhampton","DUNELM (SOFT FURNISHIN",20.38,"Community Enablement","5714","Equipment - Purchase","12/08/2019"
"Wolverhampton City Council","http://opendatacommunities.org/id/metropolitan-district-council/wolverhampton","AMZNMktplace",71.96,"Parks - Ranger Service","5999","R4000","12/08/2019"
"Wolverhampton City Council","http://opendatacommunities.org/id/metropolitan-district-council/wolverhampton","WOLVERHAMPTON HOTEL",374.25,"Destitute Plus","7011","Accommodation Costs","12/08/2019"
"Wolverhampton City Council","http://opendatacommunities.org/id/metropolitan-district-council/wolverhampton","WOLVERHAMPTON HOTEL",209.25,"Destitute Plus","7011","Accommodation Costs","12/08/2019"
"Wolverhampton City Council","http://opendatacommunities.org/id/metropolitan-district-council/wolverhampton","WWW.WOLVERHAMPTON.GOV.",500,"LAC Transitions Team","9399","Accommodation Costs","12/08/2019"
"Wolverhampton City Council","http://opendatacommunities.org/id/metropolitan-district-council/wolverhampton","ARGOS WOLVERHAMPTO",49.84,"Key to Inspiration","5310","Equipment - Purchase","12/08/2019"
"Wolverhampton City Council","http://opendatacommunities.org/id/metropolitan-district-council/wolverhampton","SAINSBURYS SACAT (2340",12.5,"Key to Inspiration","5411","Educ Trips, Holidays, Outings, Activity","12/08/2019"
"Wolverhampton City Council","http://opendatacommunities.org/id/metropolitan-district-council/wolverhampton","ASDA GROCERIES ONLINE",-0.28,"Bradley Resource Centre","5411","Provisions (Not for resale)","12/08/2019"
"Wolverhampton City Council","http://opendatacommunities.org/id/metropolitan-district-council/wolverhampton","ASDA GROCERIES ONLINE",137.7,"Bradley Resource Centre","5411","Provisions (Not for resale)","12/08/2019"
"Wolverhampton City Council","http://opendatacommunities.org/id/metropolitan-district-council/wolverhampton","WWW.ARGOS.CO.UK",466.62,"Keith Piper","5310","Accommodation Costs","12/08/2019"
"Wolverhampton City Council","http://opendatacommunities.org/id/metropolitan-district-council/wolverhampton","STAGEDEPOT.CO.UK",91.5,"Technician","5251","Equipment - Purchase","12/08/2019"
"Wolverhampton City Council","http://opendatacommunities.org/id/metropolitan-district-council/wolverhampton","B & Q 1237",244.3,"Keith Piper","5200","R4400","12/08/2019"
"Wolverhampton City Council","http://opendatacommunities.org/id/metropolitan-district-council/wolverhampton","CURRYS ONLINE",83.3,"Keith Piper","5732","R4400","12/08/2019"
"Wolverhampton City Council","http://opendatacommunities.org/id/metropolitan-district-council/wolverhampton","SAINSBURYS 2040",11.67,"Mayoral Expenses","5411","Clothing / Uniforms","12/08/2019"
"Wolverhampton City Council","http://opendatacommunities.org/id/metropolitan-district-council/wolverhampton","AMZNMKTPLACE AMAZON.CO",20.99,"EIP Locality 3","5999","Equipment - Purchase","12/08/2019"
"Wolverhampton City Council","http://opendatacommunities.org/id/metropolitan-district-council/wolverhampton","EXCEL CHURCH",5,"EIP Locality 2","8661","Educ Trips, Holidays, Outings, Activity","12/08/2019"
"Wolverhampton City Council","http://opendatacommunities.org/id/metropolitan-district-council/wolverhampton","PREMIER INN",73,"Childrens with Disabilities Team","3811","Section 17","12/08/2019"
"Wolverhampton City Council","http://opendatacommunities.org/id/metropolitan-district-council/wolverhampton","PREMIER INN",69,"Childrens with Disabilities Team","3811","Section 17","12/08/2019"
"Wolverhampton City Council","http://opendatacommunities.org/id/metropolitan-district-council/wolverhampton","Trainline.com",165.75,"Childrens with Disabilities Team","4112","Section 17","12/08/2019"
"Wolverhampton City Council","http://opendatacommunities.org/id/metropolitan-district-council/wolverhampton","AMZNMktplace",255.83,"Towers Outdoor Education Centre","5999","Fixtures and Fittings - Purchases","12/08/2019"
"Wolverhampton City Council","http://opendatacommunities.org/id/metropolitan-district-council/wolverhampton","DUDLEY MBC  INTERN",400,"Education Business Partnership","8999","Services - Professional Fees","12/08/2019"
"Wolverhampton City Council","http://opendatacommunities.org/id/metropolitan-district-council/wolverhampton","RESPONSTER PLUS PLAN",16.22,"City Direct","5734","Computing - Purchase of Software","12/08/2019"
"Wolverhampton City Council","http://opendatacommunities.org/id/metropolitan-district-council/wolverhampton","Trainline",19.43,"Youth Offending Team","4112","Public Transport","12/08/2019"
"Wolverhampton City Council","http://opendatacommunities.org/id/metropolitan-district-council/wolverhampton","POST OFFICE COUNTER",21.8,"LAC Team","9402","Comms - Postage","12/08/2019"
"Wolverhampton City Council","http://opendatacommunities.org/id/metropolitan-district-council/wolverhampton","Amazon.co.uk MH41O1KC4",62.46,"Upper Pendeford Farm Childrens Home","5969","Comms - Mobile Telephones","12/08/2019"
"Wolverhampton City Council","http://opendatacommunities.org/id/metropolitan-district-council/wolverhampton","ASDA GROCERIES ONLINE",-0.69,"Upper Pendeford Farm Childrens Home","5411","Provisions (Not for resale)","12/08/2019"
"Wolverhampton City Council","http://opendatacommunities.org/id/metropolitan-district-council/wolverhampton","ASDA GROCERIES ONLINE",241.98,"Upper Pendeford Farm Childrens Home","5411","Provisions (Not for resale)","12/08/2019"
"Wolverhampton City Council","http://opendatacommunities.org/id/metropolitan-district-council/wolverhampton","AMZNMktplace",13.95,"Upper Pendeford Farm Childrens Home","5999","Equipment - Health and Safety","12/08/2019"
"Wolverhampton City Council","http://opendatacommunities.org/id/metropolitan-district-council/wolverhampton","Virgin Trains",-34,"Looked After Team 2","4112","Public Transport","12/08/2019"
"Wolverhampton City Council","http://opendatacommunities.org/id/metropolitan-district-council/wolverhampton","ASDA GROCERIES ONLINE",5,"Upper Pendeford Farm Childrens Home","5411","Provisions (Not for resale)","12/08/2019"
"Wolverhampton City Council","http://opendatacommunities.org/id/metropolitan-district-council/wolverhampton","AMZNMktplace",19.16,"Wolverhampton Indoor and Open Market","5999","Equipment - Purchase","12/08/2019"
"Wolverhampton City Council","http://opendatacommunities.org/id/metropolitan-district-council/wolverhampton","CardtronicsUK",167.46,"CIN/CP Social Work Unit - Area 8","6011","Section 17","12/08/2019"
"Wolverhampton City Council","http://opendatacommunities.org/id/metropolitan-district-council/wolverhampton","WWW.WOLVERHAMPTON.GOV.",111.55,"LAC Transitions Team","9399","Accommodation Costs","12/08/2019"
"Wolverhampton City Council","http://opendatacommunities.org/id/metropolitan-district-council/wolverhampton","WBF",10,"Communications & Marketing - General","7922","Educ Trips, Holidays, Outings, Activity","09/08/2019"
"Wolverhampton City Council","http://opendatacommunities.org/id/metropolitan-district-council/wolverhampton","ASDA GROCERIES ONLINE",167.23,"Key to Inspiration","5411","Provisions (Not for resale)","09/08/2019"
"Wolverhampton City Council","http://opendatacommunities.org/id/metropolitan-district-council/wolverhampton","B & Q 1243",-5,"ALV - Darts & Comedy","5200","Equipment - Health and Safety","09/08/2019"
"Wolverhampton City Council","http://opendatacommunities.org/id/metropolitan-district-council/wolverhampton","B & Q 1237",63.44,"ALV - Darts & Comedy","5200","Equipment - Health and Safety","09/08/2019"
"Wolverhampton City Council","http://opendatacommunities.org/id/metropolitan-district-council/wolverhampton","B&M RETAIL",114.46,"LAC Transitions Team","5310","Client Allowances","09/08/2019"
"Wolverhampton City Council","http://opendatacommunities.org/id/metropolitan-district-council/wolverhampton","BRITANNIA",94,"NRPF","7011","Accommodation Costs","09/08/2019"
"Wolverhampton City Council","http://opendatacommunities.org/id/metropolitan-district-council/wolverhampton","NATWEST BANK",200,"NRPF","6011","No Recourse to Public Funds","09/08/2019"
"Wolverhampton City Council","http://opendatacommunities.org/id/metropolitan-district-council/wolverhampton","CITY OF WOLVERHAMPTON",-11,"Childrens with Disabilities Team","9399","Section 17","09/08/2019"
"Wolverhampton City Council","http://opendatacommunities.org/id/metropolitan-district-council/wolverhampton","WWW.PMFPRODUCTS.CO.UK",75.6,"Aldersley Leisure Village","5655","Equipment - Purchase","09/08/2019"
"Wolverhampton City Council","http://opendatacommunities.org/id/metropolitan-district-council/wolverhampton","CARVER/WOLVERHAMPTON/L",116.44,"Ground Maintenance East","5211","Materials","09/08/2019"
"Wolverhampton City Council","http://opendatacommunities.org/id/metropolitan-district-council/wolverhampton","TESCO STORES 4357",90.4,"Mayor's Charity","5411","Accommodation Costs","09/08/2019"
"Wolverhampton City Council","http://opendatacommunities.org/id/metropolitan-district-council/wolverhampton","W HAMPTON1797",30.72,"Cemeteries","5211","Materials","09/08/2019"
"Wolverhampton City Council","http://opendatacommunities.org/id/metropolitan-district-council/wolverhampton","Trainline.com",113.04,"Starting and Developing Well(0-24 group)","4112","Public Transport","09/08/2019"
"Wolverhampton City Council","http://opendatacommunities.org/id/metropolitan-district-council/wolverhampton","ITUNES.COM/BILL",0.79,"Managing Director","5735","Computing - Purchase of Software","09/08/2019"
"Wolverhampton City Council","http://opendatacommunities.org/id/metropolitan-district-council/wolverhampton","AMZNMKTPLACE AMAZON.CO",21.66,"Bert Williams Leisure Centre","5999","Accommodation Costs","09/08/2019"
"Wolverhampton City Council","http://opendatacommunities.org/id/metropolitan-district-council/wolverhampton","Virgin Trains",44.15,"Looked After Team 2","4112","Public Transport","09/08/2019"
"Wolverhampton City Council","http://opendatacommunities.org/id/metropolitan-district-council/wolverhampton","AMZNMktplace",237.82,"Children & Young People Support Costs","5999","Equipment - Purchase","09/08/2019"
"Wolverhampton City Council","http://opendatacommunities.org/id/metropolitan-district-council/wolverhampton","WWW.WOLVERHAMPTON.GOV.",27,"LAC Transitions Team","9399","Client Allowances","09/08/2019"
"Wolverhampton City Council","http://opendatacommunities.org/id/metropolitan-district-council/wolverhampton","POUNDSTRETCHER 703",41.67,"LAC Transitions Team","5331","Client Allowances","09/08/2019"
"Wolverhampton City Council","http://opendatacommunities.org/id/metropolitan-district-council/wolverhampton","B & Q 1243",23.6,"Bilston Market & Licensed Operations","5200","Accommodation Costs","09/08/2019"
"Wolverhampton City Council","http://opendatacommunities.org/id/metropolitan-district-council/wolverhampton","THE SOLICITORS GROUP",102,"Central Training","8244","Training Expenses","09/08/2019"
"Wolverhampton City Council","http://opendatacommunities.org/id/metropolitan-district-council/wolverhampton","AMZNMktplace",15.37,"Global Budgets","5999","Accommodation Costs","09/08/2019"
"Wolverhampton City Council","http://opendatacommunities.org/id/metropolitan-district-council/wolverhampton","GEN REGISTER OFFICE",38,"Head of Service - CINCP","9399","Services - Fees and Charges","09/08/2019"
"Wolverhampton City Council","http://opendatacommunities.org/id/metropolitan-district-council/wolverhampton","WEST MID TRAVEL",223.17,"Community Enablement","4131","Public Transport","09/08/2019"
"Wolverhampton City Council","http://opendatacommunities.org/id/metropolitan-district-council/wolverhampton","WWW.SOFTUBSPAS.CO.UK",95.54,"Parks - Ranger Service","5996","R4000","09/08/2019"
"Wolverhampton City Council","http://opendatacommunities.org/id/metropolitan-district-council/wolverhampton","AMZNMktplace",38.5,"Parks - Ranger Service","5999","R4000","09/08/2019"
"Wolverhampton City Council","http://opendatacommunities.org/id/metropolitan-district-council/wolverhampton","WEST MID TRAVEL",223.17,"Community Enablement","4131","Public Transport","09/08/2019"
"Wolverhampton City Council","http://opendatacommunities.org/id/metropolitan-district-council/wolverhampton","BRITANNIA",25,"Destitute Plus","7011","Services - Supplies & Services to users","09/08/2019"
"Wolverhampton City Council","http://opendatacommunities.org/id/metropolitan-district-council/wolverhampton","WWW.REDWINGSLODGEB",133.17,"Adult Services - East","7011","Services - Supplies & Services to users","09/08/2019"
"Wolverhampton City Council","http://opendatacommunities.org/id/metropolitan-district-council/wolverhampton","REDWINGS LODGE",41.62,"Adult Services - East","7011","Services - Supplies & Services to users","08/08/2019"
"Wolverhampton City Council","http://opendatacommunities.org/id/metropolitan-district-council/wolverhampton","PAYPAL  TWISTFIX",121,"Northicote Farm","5932","Equipment - Purchase","08/08/2019"
"Wolverhampton City Council","http://opendatacommunities.org/id/metropolitan-district-council/wolverhampton","AMZNMKTPLACE AMAZON.CO",13.22,"Communications & Marketing - General","5999","Equipment - Purchase","08/08/2019"
"Wolverhampton City Council","http://opendatacommunities.org/id/metropolitan-district-council/wolverhampton","AMZNMKTPLACE AMAZON.CO",50,"Communications & Marketing - General","5999","Equipment - Purchase","08/08/2019"
"Wolverhampton City Council","http://opendatacommunities.org/id/metropolitan-district-council/wolverhampton","AMZNMKTPLACE AMAZON.CO",7.6,"Communications & Marketing - General","5999","Equipment - Purchase","08/08/2019"
"Wolverhampton City Council","http://opendatacommunities.org/id/metropolitan-district-council/wolverhampton","AMZNMktplace",49.17,"Communications & Marketing - General","5999","Equipment - Purchase","08/08/2019"
"Wolverhampton City Council","http://opendatacommunities.org/id/metropolitan-district-council/wolverhampton","ASDA GROCERIES ONLINE",-2.6,"Bradley Resource Centre","5411","Provisions (Not for resale)","08/08/2019"
"Wolverhampton City Council","http://opendatacommunities.org/id/metropolitan-district-council/wolverhampton","ASDA GROCERIES ONLINE",140.62,"Bradley Resource Centre","5411","Provisions (Not for resale)","08/08/2019"
"Wolverhampton City Council","http://opendatacommunities.org/id/metropolitan-district-council/wolverhampton","BRITANNIA",43,"NRPF","7011","Accommodation Costs","08/08/2019"
"Wolverhampton City Council","http://opendatacommunities.org/id/metropolitan-district-council/wolverhampton","ARGOS RETAIL GROUP",44.99,"Childrens with Disabilities Team","5310","Section 17","08/08/2019"
"Wolverhampton City Council","http://opendatacommunities.org/id/metropolitan-district-council/wolverhampton","SAINSBURYS PFS (1340)",2,"Mayoral Expenses","5541","Vehicle Maintenance - Repairs","08/08/2019"
"Wolverhampton City Council","http://opendatacommunities.org/id/metropolitan-district-council/wolverhampton","SAINSBURYS (2340)",43.9,"Mayoral Expenses","5411","Hospitality","08/08/2019"
"Wolverhampton City Council","http://opendatacommunities.org/id/metropolitan-district-council/wolverhampton","B & Q 1243",28.29,"Public Conveniences","5200","Materials","08/08/2019"
"Wolverhampton City Council","http://opendatacommunities.org/id/metropolitan-district-council/wolverhampton","AMZNMktplace",7.59,"Bert Williams Leisure Centre","5999","Accommodation Costs","08/08/2019"
"Wolverhampton City Council","http://opendatacommunities.org/id/metropolitan-district-council/wolverhampton","POST OFFICE COUNTER",7.4,"Looked After Team 2","9402","Comms - Postage","08/08/2019"
"Wolverhampton City Council","http://opendatacommunities.org/id/metropolitan-district-council/wolverhampton","CITY OF WOLVERHAMPTON",27,"Childrens with Disabilities Team","9399","Section 17","08/08/2019"
"Wolverhampton City Council","http://opendatacommunities.org/id/metropolitan-district-council/wolverhampton","Amazon.co.uk MH0FK3DT4",49.98,"Children & Young People Support Costs","5969","Equipment - Purchase","08/08/2019"
"Wolverhampton City Council","http://opendatacommunities.org/id/metropolitan-district-council/wolverhampton","AMZNMktplace",19.54,"Children & Young People Support Costs","5999","Equipment - Purchase","08/08/2019"
"Wolverhampton City Council","http://opendatacommunities.org/id/metropolitan-district-council/wolverhampton","Amazon.co.uk MH9EM66J4",106.72,"Children & Young People Support Costs","5969","Equipment - Purchase","08/08/2019"
"Wolverhampton City Council","http://opendatacommunities.org/id/metropolitan-district-council/wolverhampton","Amazon.co.uk MH8SV3634",76.69,"Children & Young People Support Costs","5969","Equipment - Purchase","08/08/2019"
"Wolverhampton City Council","http://opendatacommunities.org/id/metropolitan-district-council/wolverhampton","Amazon.co.uk MH6E356B4",408.66,"Children & Young People Support Costs","5969","Equipment - Purchase","08/08/2019"
"Wolverhampton City Council","http://opendatacommunities.org/id/metropolitan-district-council/wolverhampton","HMCOURTS-SERVICE.G",75,"Assistant Director - Public Health","9222","Services - Fees and Charges","08/08/2019"
"Wolverhampton City Council","http://opendatacommunities.org/id/metropolitan-district-council/wolverhampton","B&M RETAIL",4.98,"LAC Transitions Team","5310","Client Allowances","08/08/2019"
"Wolverhampton City Council","http://opendatacommunities.org/id/metropolitan-district-council/wolverhampton","AMZNMktplace",12.97,"Global Budgets","5999","Accommodation Costs","08/08/2019"
"Wolverhampton City Council","http://opendatacommunities.org/id/metropolitan-district-council/wolverhampton","COMBINED COURT",170,"Looked After Team 2","9222","Services - Fees and Charges","08/08/2019"
"Wolverhampton City Council","http://opendatacommunities.org/id/metropolitan-district-council/wolverhampton","Amazon.co.uk MH5ON4DX4",120.03,"Children & Young People Support Costs","5969","Equipment - Purchase","08/08/2019"
"Wolverhampton City Council","http://opendatacommunities.org/id/metropolitan-district-council/wolverhampton","Amazon.co.uk MH2240654",60.03,"Children & Young People Support Costs","5969","Equipment - Purchase","08/08/2019"
"Wolverhampton City Council","http://opendatacommunities.org/id/metropolitan-district-council/wolverhampton","Amazon.co.uk MH0730DQ4",49.98,"Children & Young People Support Costs","5969","Equipment - Purchase","08/08/2019"
"Wolverhampton City Council","http://opendatacommunities.org/id/metropolitan-district-council/wolverhampton","BOUNDARY MILLS STORE W",10.8,"Ernest Bold Court","5311","Equipment - Purchase","08/08/2019"
"Wolverhampton City Council","http://opendatacommunities.org/id/metropolitan-district-council/wolverhampton","CARVER/WOLVERHAMPTON/L",89.26,"Direct Schools","5211","Materials","08/08/2019"
"Wolverhampton City Council","http://opendatacommunities.org/id/metropolitan-district-council/wolverhampton","H&R SUMMIT 2019",349,"Mayor's Charity","7922","Educ Trips, Holidays, Outings, Activity","08/08/2019"
"Wolverhampton City Council","http://opendatacommunities.org/id/metropolitan-district-council/wolverhampton","GEN REGISTER OFFICE",11.67,"LAC Transitions Team","9399","Client Allowances","08/08/2019"
"Wolverhampton City Council","http://opendatacommunities.org/id/metropolitan-district-council/wolverhampton","Amazon.co.uk MH5MS36L4",83.32,"Strategic ICTS (ICT Serv Budget)","5969","Computing - Consumables","07/08/2019"
"Wolverhampton City Council","http://opendatacommunities.org/id/metropolitan-district-council/wolverhampton","ALDI 48 772",2.73,"Youth Offending Team","5411","Provisions (Not for resale)","07/08/2019"
"Wolverhampton City Council","http://opendatacommunities.org/id/metropolitan-district-council/wolverhampton","NATWEST BANK",200,"NRPF","6011","Client Allowances","07/08/2019"
"Wolverhampton City Council","http://opendatacommunities.org/id/metropolitan-district-council/wolverhampton","LOYD 89 CHURCH STREET",20,"EIP Locality 2","6011","Grant Payments","07/08/2019"
"Wolverhampton City Council","http://opendatacommunities.org/id/metropolitan-district-council/wolverhampton","PREMIER INN",69,"Childrens with Disabilities Team","3811","Section 17","07/08/2019"
"Wolverhampton City Council","http://opendatacommunities.org/id/metropolitan-district-council/wolverhampton","Amazon.co.uk MH9EK9QD4",19.72,"Regional Adoption Agency","5969","Equipment - Purchase","07/08/2019"
"Wolverhampton City Council","http://opendatacommunities.org/id/metropolitan-district-council/wolverhampton","WALSALL COUNCIL",45.48,"Regional Adoption Agency","9399","Services - Fees and Charges","07/08/2019"
"Wolverhampton City Council","http://opendatacommunities.org/id/metropolitan-district-council/wolverhampton","SPAR",204,"Towers Outdoor Education Centre","5411","Provisions (Not for resale)","07/08/2019"
"Wolverhampton City Council","http://opendatacommunities.org/id/metropolitan-district-council/wolverhampton","O E METCALFE",413.61,"Towers Outdoor Education Centre","5499","Provisions (Not for resale)","07/08/2019"
"Wolverhampton City Council","http://opendatacommunities.org/id/metropolitan-district-council/wolverhampton","CHEMSOL CYMRU LTD",348.65,"Towers Outdoor Education Centre","5199","Fixtures and Fittings - Purchases","07/08/2019"
"Wolverhampton City Council","http://opendatacommunities.org/id/metropolitan-district-council/wolverhampton","PHILIP JORDAN ASSOCIAT",8.29,"Towers Outdoor Education Centre","5712","Fixtures and Fittings - Purchases","07/08/2019"
"Wolverhampton City Council","http://opendatacommunities.org/id/metropolitan-district-council/wolverhampton","Amazon.co.uk MH6Q34Q84",35.87,"Towers Outdoor Education Centre","5969","Fixtures and Fittings - Purchases","07/08/2019"
"Wolverhampton City Council","http://opendatacommunities.org/id/metropolitan-district-council/wolverhampton","FUEL CARD SERVICES LTD",502.49,"Towers Outdoor Education Centre","7399","Petrol","07/08/2019"
"Wolverhampton City Council","http://opendatacommunities.org/id/metropolitan-district-council/wolverhampton","HN NUTTALL LTD",301.72,"Towers Outdoor Education Centre","5085","Provisions (Not for resale)","07/08/2019"
"Wolverhampton City Council","http://opendatacommunities.org/id/metropolitan-district-council/wolverhampton","AMZNMktplace",5.02,"Towers Outdoor Education Centre","5999","Fixtures and Fittings - Purchases","07/08/2019"
"Wolverhampton City Council","http://opendatacommunities.org/id/metropolitan-district-council/wolverhampton","Amazon.co.uk MH9JN0Q34",17.92,"Towers Outdoor Education Centre","5969","Fixtures and Fittings - Purchases","07/08/2019"
"Wolverhampton City Council","http://opendatacommunities.org/id/metropolitan-district-council/wolverhampton","AMZNMktplace",1.62,"Towers Outdoor Education Centre","5999","Fixtures and Fittings - Purchases","07/08/2019"
"Wolverhampton City Council","http://opendatacommunities.org/id/metropolitan-district-council/wolverhampton","AMZNMktplace",4.79,"Towers Outdoor Education Centre","5999","Fixtures and Fittings - Purchases","07/08/2019"
"Wolverhampton City Council","http://opendatacommunities.org/id/metropolitan-district-council/wolverhampton","AMZNMktplace",4.12,"Towers Outdoor Education Centre","5999","Fixtures and Fittings - Purchases","07/08/2019"
"Wolverhampton City Council","http://opendatacommunities.org/id/metropolitan-district-council/wolverhampton","GOOGLE  ADS9680351324",500,"Communications & Marketing - General","5968","Subscriptions","07/08/2019"
"Wolverhampton City Council","http://opendatacommunities.org/id/metropolitan-district-council/wolverhampton","WWW.WMCA.CO.UK",56.5,"IMPACT","9399","Services - Fees and Charges","07/08/2019"
"Wolverhampton City Council","http://opendatacommunities.org/id/metropolitan-district-council/wolverhampton","CITY OF WOLVERHAMPTON",40,"IMPACT","9399","Services - Fees and Charges","07/08/2019"
"Wolverhampton City Council","http://opendatacommunities.org/id/metropolitan-district-council/wolverhampton","NAMESCO",34.99,"Communications & Marketing - General","4816","Computing - Purchase of Software","07/08/2019"
"Wolverhampton City Council","http://opendatacommunities.org/id/metropolitan-district-council/wolverhampton","THE BOB JONES COMMUNIT",4,"Youth Offending Team","7999","Educ Trips, Holidays, Outings, Activity","07/08/2019"
"Wolverhampton City Council","http://opendatacommunities.org/id/metropolitan-district-council/wolverhampton","WEST MID TRAVEL",98.35,"Youth Offending Team","4131","Public Transport","07/08/2019"
"Wolverhampton City Council","http://opendatacommunities.org/id/metropolitan-district-council/wolverhampton","WWW.ARGOS.CO.UK",83.98,"Upper Pendeford Farm Childrens Home","5310","Equipment - Purchase","07/08/2019"
"Wolverhampton City Council","http://opendatacommunities.org/id/metropolitan-district-council/wolverhampton","WWW.ARGOS.CO.UK",223.93,"Upper Pendeford Farm Childrens Home","5310","Equipment - Purchase","07/08/2019"
"Wolverhampton City Council","http://opendatacommunities.org/id/metropolitan-district-council/wolverhampton","ASDA GROCERIES ONLINE",58.5,"Upper Pendeford Farm Childrens Home","5411","Provisions (Not for resale)","07/08/2019"
"Wolverhampton City Council","http://opendatacommunities.org/id/metropolitan-district-council/wolverhampton","POST OFFICE COUNTER",7.4,"LAC Team","9402","Comms - Postage","07/08/2019"
"Wolverhampton City Council","http://opendatacommunities.org/id/metropolitan-district-council/wolverhampton","ALLIANCE DISPOSABLES",86.96,"Central Costs","5811","Catering","07/08/2019"
"Wolverhampton City Council","http://opendatacommunities.org/id/metropolitan-district-council/wolverhampton","EASTMAN STAPLES LTD",174.05,"LAC Transitions Team","7399","Client Allowances","07/08/2019"
"Wolverhampton City Council","http://opendatacommunities.org/id/metropolitan-district-council/wolverhampton","KEBAB AND FISH BAR (BI",20.7,"Ernest Bold Court","5812","Provisions (Not for resale)","07/08/2019"
"Wolverhampton City Council","http://opendatacommunities.org/id/metropolitan-district-council/wolverhampton","COMPANY CARDS LTD",138.5,"Technical Support","2741","Publications","07/08/2019"
"Wolverhampton City Council","http://opendatacommunities.org/id/metropolitan-district-council/wolverhampton","123 REG R/T",11.99,"Art Gallery","5968","Subscriptions","07/08/2019"
"Wolverhampton City Council","http://opendatacommunities.org/id/metropolitan-district-council/wolverhampton","POST OFFICE COUNTER",8.7,"Looked After Team 2","9402","Comms - Postage","07/08/2019"
"Wolverhampton City Council","http://opendatacommunities.org/id/metropolitan-district-council/wolverhampton","COLE-PARMER INSTRUMENT",409.5,"Environmental Protection","5085","Equipment - Purchase","07/08/2019"
"Wolverhampton City Council","http://opendatacommunities.org/id/metropolitan-district-council/wolverhampton","VIRGIN MEDIA PYMTS",7.5,"Community Enablement","4814","Comms - Telephone Rental","07/08/2019"
"Wolverhampton City Council","http://opendatacommunities.org/id/metropolitan-district-council/wolverhampton","SITE ENERGY SERVIC",85,"Central Training","1731","Training Expenses","07/08/2019"
"Wolverhampton City Council","http://opendatacommunities.org/id/metropolitan-district-council/wolverhampton","CITY OF WOLVERHAMPTON",13.33,"LAC Transitions Team","9399","Client Allowances","07/08/2019"
"Wolverhampton City Council","http://opendatacommunities.org/id/metropolitan-district-council/wolverhampton","REDWINGS LODGE",41.62,"Adult Services - East","7011","Services - Supplies & Services to users","07/08/2019"
"Wolverhampton City Council","http://opendatacommunities.org/id/metropolitan-district-council/wolverhampton","Virgin Trains",51,"Mayor's Charity","4112","Accommodation Costs","06/08/2019"
"Wolverhampton City Council","http://opendatacommunities.org/id/metropolitan-district-council/wolverhampton","ASDA GROCERIES ONLINE",-0.1,"Bradley Resource Centre","5411","Provisions (Not for resale)","06/08/2019"
"Wolverhampton City Council","http://opendatacommunities.org/id/metropolitan-district-council/wolverhampton","ASDA GROCERIES ONLINE",152.63,"Bradley Resource Centre","5411","Provisions (Not for resale)","06/08/2019"
"Wolverhampton City Council","http://opendatacommunities.org/id/metropolitan-district-council/wolverhampton","BT BILL PAYMENT 2",111.84,"Art Gallery","4812","Comms - Mobile Telephones","06/08/2019"
"Wolverhampton City Council","http://opendatacommunities.org/id/metropolitan-district-council/wolverhampton","Trainline",56.27,"Childrens with Disabilities Team","4112","Section 17","06/08/2019"
"Wolverhampton City Council","http://opendatacommunities.org/id/metropolitan-district-council/wolverhampton","TRAVELODGE",90.75,"Emergency Duty Team","3615","Services - Supplies & Services to users","06/08/2019"
"Wolverhampton City Council","http://opendatacommunities.org/id/metropolitan-district-council/wolverhampton","AMZNMKTPLACE AMAZON.CO",12.84,"Regional Adoption Agency","5999","Equipment - Purchase","06/08/2019"
"Wolverhampton City Council","http://opendatacommunities.org/id/metropolitan-district-council/wolverhampton","AMZNMKTPLACE AMAZON.CO",9.76,"Regional Adoption Agency","5999","Equipment - Purchase","06/08/2019"
"Wolverhampton City Council","http://opendatacommunities.org/id/metropolitan-district-council/wolverhampton","AMZNMktplace",9.85,"Regional Adoption Agency","5999","Equipment - Purchase","06/08/2019"
"Wolverhampton City Council","http://opendatacommunities.org/id/metropolitan-district-council/wolverhampton","WWW.HOBARTUK.CO.UK",-37.3,"Towers Outdoor Education Centre","5722","Fixtures and Fittings - Purchases","06/08/2019"
"Wolverhampton City Council","http://opendatacommunities.org/id/metropolitan-district-council/wolverhampton","HARLECH FOODSERVICE LT",170.06,"Towers Outdoor Education Centre","5422","Provisions (Not for resale)","06/08/2019"
"Wolverhampton City Council","http://opendatacommunities.org/id/metropolitan-district-council/wolverhampton","C L JONES HEAD OFFICE",38.53,"Towers Outdoor Education Centre","5211","Fixtures and Fittings - Purchases","06/08/2019"
"Wolverhampton City Council","http://opendatacommunities.org/id/metropolitan-district-council/wolverhampton","BARCLAYS",250,"CIN/CP Social Work Unit - Area 6","6011","Financial Assistance In Exceptional Circ","06/08/2019"
"Wolverhampton City Council","http://opendatacommunities.org/id/metropolitan-district-council/wolverhampton","WM MORRISONS STORE",7.5,"Mayor's Charity","5411","Accommodation Costs","06/08/2019"
"Wolverhampton City Council","http://opendatacommunities.org/id/metropolitan-district-council/wolverhampton","WWW.WMCA.CO.UK",6.9,"IMPACT","9399","Services - Fees and Charges","06/08/2019"
"Wolverhampton City Council","http://opendatacommunities.org/id/metropolitan-district-council/wolverhampton","Trainline.com",29.76,"Public Health Support Costs","4112","Public Transport","06/08/2019"
"Wolverhampton City Council","http://opendatacommunities.org/id/metropolitan-district-council/wolverhampton","Trainline.com",20.1,"Healthy Ageing","4112","Public Transport","06/08/2019"
"Wolverhampton City Council","http://opendatacommunities.org/id/metropolitan-district-council/wolverhampton","WM MORRISONS STORE",15.1,"EIP Locality 6","5411","Equipment - Purchase","06/08/2019"
"Wolverhampton City Council","http://opendatacommunities.org/id/metropolitan-district-council/wolverhampton","WM MORRISONS STORE",25.84,"EIP Locality 6","5411","Grant Payments","06/08/2019"
"Wolverhampton City Council","http://opendatacommunities.org/id/metropolitan-district-council/wolverhampton","CUMMINGS BROTHERS LOCK",3.5,"Caretakers Community Centre","7399","Equipment - Purchase","06/08/2019"
"Wolverhampton City Council","http://opendatacommunities.org/id/metropolitan-district-council/wolverhampton","CUMMINGS BROTHERS LOCK",17,"Caretakers Community Centre","7399","Equipment - Purchase","06/08/2019"
"Wolverhampton City Council","http://opendatacommunities.org/id/metropolitan-district-council/wolverhampton","AMZNMKTPLACE AMAZON.CO",54.16,"Central Baths","5999","Equipment - Purchase","06/08/2019"
"Wolverhampton City Council","http://opendatacommunities.org/id/metropolitan-district-council/wolverhampton","AMZNMKTPLACE AMAZON.CO",7.49,"Bert Williams Leisure Centre","5999","Accommodation Costs","06/08/2019"
"Wolverhampton City Council","http://opendatacommunities.org/id/metropolitan-district-council/wolverhampton","Virgin Trains",69.7,"LAC Team","4112","Public Transport","06/08/2019"
"Wolverhampton City Council","http://opendatacommunities.org/id/metropolitan-district-council/wolverhampton","POST OFFICE COUNTER",7.4,"LAC Team","9402","Comms - Postage","06/08/2019"
"Wolverhampton City Council","http://opendatacommunities.org/id/metropolitan-district-council/wolverhampton","AMZ Amazon.co.uk",-56,"Children & Young People Support Costs","5969","Equipment - Purchase","06/08/2019"
"Wolverhampton City Council","http://opendatacommunities.org/id/metropolitan-district-council/wolverhampton","W HAMPTON1797",13.32,"Hickman Avenue Depot","5211","Materials","06/08/2019"
"Wolverhampton City Council","http://opendatacommunities.org/id/metropolitan-district-council/wolverhampton","GLASDON U K LTD",198.66,"Education Catering - General Overheads","7399","Equipment - Purchase","06/08/2019"
"Wolverhampton City Council","http://opendatacommunities.org/id/metropolitan-district-council/wolverhampton","GLASDON U K LTD",198.66,"Education Catering - General Overheads","7399","Equipment - Purchase","06/08/2019"
"Wolverhampton City Council","http://opendatacommunities.org/id/metropolitan-district-council/wolverhampton","123-REG.CO.UK",9.99,"Technical Support","4816","Computing - Purchase of Software","06/08/2019"
"Wolverhampton City Council","http://opendatacommunities.org/id/metropolitan-district-council/wolverhampton","ASDA GROCERIES ONLINE",40.39,"Ernest Bold Court","5411","Provisions (Not for resale)","06/08/2019"
"Wolverhampton City Council","http://opendatacommunities.org/id/metropolitan-district-council/wolverhampton","WWW.SOLACE.ORG.UK",358.8,"Central Training","8699","Training Expenses","06/08/2019"
"Wolverhampton City Council","http://opendatacommunities.org/id/metropolitan-district-council/wolverhampton","PAYPAL  SI NETWORK",70,"Workforce Development","8299","Accommodation Costs","06/08/2019"
"Wolverhampton City Council","http://opendatacommunities.org/id/metropolitan-district-council/wolverhampton","CITY OF WOLVERHAMPTON",27,"Head of Service - CINCP","9399","Services - Fees and Charges","06/08/2019"
"Wolverhampton City Council","http://opendatacommunities.org/id/metropolitan-district-council/wolverhampton","REDWINGS LODGE",41.62,"Adult Services - East","7011","Services - Supplies & Services to users","06/08/2019"
"Wolverhampton City Council","http://opendatacommunities.org/id/metropolitan-district-council/wolverhampton","WWW.ICELAND.CO.UK",83,"Bradley Resource Centre","5411","Provisions (Not for resale)","05/08/2019"
"Wolverhampton City Council","http://opendatacommunities.org/id/metropolitan-district-council/wolverhampton","ASDA STORE 4753",9.6,"Bradley Resource Centre","5411","Provisions (Not for resale)","05/08/2019"
"Wolverhampton City Council","http://opendatacommunities.org/id/metropolitan-district-council/wolverhampton","GOOGLE  ADS6872419364",500,"Communications & Marketing - General","5968","Marketing \ Non-staff advertising","05/08/2019"
"Wolverhampton City Council","http://opendatacommunities.org/id/metropolitan-district-council/wolverhampton","AO RETAIL LIMITED",107.5,"LAC Transitions Team","5722","Client Allowances","05/08/2019"
"Wolverhampton City Council","http://opendatacommunities.org/id/metropolitan-district-council/wolverhampton","ALDERSLEY LEISURE",56,"EIP Locality 2","8299","Educ Trips, Holidays, Outings, Activity","05/08/2019"
"Wolverhampton City Council","http://opendatacommunities.org/id/metropolitan-district-council/wolverhampton","NOVOTEL WOLVERHAMPTON",20,"Regional Adoption Agency","7011","Services - Supplies & Services to users","05/08/2019"
"Wolverhampton City Council","http://opendatacommunities.org/id/metropolitan-district-council/wolverhampton","TESCO STORES 5194",37.51,"Towers Outdoor Education Centre","5411","Provisions (Not for resale)","05/08/2019"
"Wolverhampton City Council","http://opendatacommunities.org/id/metropolitan-district-council/wolverhampton","WWW.JUSTGLOVES.CO.UK",114,"Aldersley Leisure Village","5999","Equipment - Purchase","05/08/2019"
"Wolverhampton City Council","http://opendatacommunities.org/id/metropolitan-district-council/wolverhampton","TFM FARM   COUNTRY",84.99,"Ground Maintenance East","0763","Clothing / Uniforms","05/08/2019"
"Wolverhampton City Council","http://opendatacommunities.org/id/metropolitan-district-council/wolverhampton","B&M RETAIL",45.15,"Aldersley Leisure Village","5310","R4000","05/08/2019"
"Wolverhampton City Council","http://opendatacommunities.org/id/metropolitan-district-council/wolverhampton","SMYTHS TOYS WOLVERHAMP",38.31,"Aldersley Leisure Village","5945","R4400","05/08/2019"
"Wolverhampton City Council","http://opendatacommunities.org/id/metropolitan-district-council/wolverhampton","COMMIFY UK LIMITED",310,"Work Box","4814","Comms - Telephone Call charges","05/08/2019"
"Wolverhampton City Council","http://opendatacommunities.org/id/metropolitan-district-council/wolverhampton","SAINSBURYS PFS (1340)",2,"Mayoral Expenses","5541","Vehicle Maintenance - Repairs","05/08/2019"
"Wolverhampton City Council","http://opendatacommunities.org/id/metropolitan-district-council/wolverhampton","ADDSEARCH",84.29,"City Direct","7372","Computing - Purchase of Software","05/08/2019"
"Wolverhampton City Council","http://opendatacommunities.org/id/metropolitan-district-council/wolverhampton","NATWEST BANK",250,"CAT","6011","Financial Assistance In Exceptional Circ","05/08/2019"
"Wolverhampton City Council","http://opendatacommunities.org/id/metropolitan-district-council/wolverhampton","GO APE",138.32,"Youth Offending Team","7996","Educ Trips, Holidays, Outings, Activity","05/08/2019"
"Wolverhampton City Council","http://opendatacommunities.org/id/metropolitan-district-council/wolverhampton","NOVOTEL WOLVERHAMPTON",384,"Regional Adoption Agency","7011","Accommodation Costs","05/08/2019"
"Wolverhampton City Council","http://opendatacommunities.org/id/metropolitan-district-council/wolverhampton","AMZNMktplace",39.97,"Central Baths","5999","Equipment - Purchase","05/08/2019"
"Wolverhampton City Council","http://opendatacommunities.org/id/metropolitan-district-council/wolverhampton","Amazon.co.uk MH8WV6BI4",40.82,"Bert Williams Leisure Centre","5969","Accommodation Costs","05/08/2019"
"Wolverhampton City Council","http://opendatacommunities.org/id/metropolitan-district-council/wolverhampton","Amazon.co.uk MH4ZQ2HH4",6.67,"Mayor's Charity","5969","Accommodation Costs","05/08/2019"
"Wolverhampton City Council","http://opendatacommunities.org/id/metropolitan-district-council/wolverhampton","AMZ BestDeal Warehouse",-2.78,"Intensive Family Support Team","5999","Equipment - Purchase","05/08/2019"
"Wolverhampton City Council","http://opendatacommunities.org/id/metropolitan-district-council/wolverhampton","ASDA GROCERIES ONLINE",265.53,"Upper Pendeford Farm Childrens Home","5411","Provisions (Not for resale)","05/08/2019"
"Wolverhampton City Council","http://opendatacommunities.org/id/metropolitan-district-council/wolverhampton","Virgin Trains",29.35,"Looked After Team 2","4112","Public Transport","05/08/2019"
"Wolverhampton City Council","http://opendatacommunities.org/id/metropolitan-district-council/wolverhampton","POST OFFICE COUNTER",0,"Carers Support","9402","Comms - Postage","05/08/2019"
"Wolverhampton City Council","http://opendatacommunities.org/id/metropolitan-district-council/wolverhampton","TVLICENSING.CO.UK",154.5,"Blakenhall Commty & Healthy Living Ctr","7392","Services - Consultants","05/08/2019"
"Wolverhampton City Council","http://opendatacommunities.org/id/metropolitan-district-council/wolverhampton","AMZNMktplace",17.79,"Global Budgets","5999","Accommodation Costs","05/08/2019"
"Wolverhampton City Council","http://opendatacommunities.org/id/metropolitan-district-council/wolverhampton","ASDA GROCERIES ONLINE",-0.03,"Ernest Bold Court","5411","Provisions (Not for resale)","05/08/2019"
"Wolverhampton City Council","http://opendatacommunities.org/id/metropolitan-district-council/wolverhampton","ASDA GROCERIES ONLINE",71.09,"Ernest Bold Court","5411","Provisions (Not for resale)","05/08/2019"
"Wolverhampton City Council","http://opendatacommunities.org/id/metropolitan-district-council/wolverhampton","WWW.LABC.UK.COM",150,"City Centre","7399","Services - Fees and Charges","05/08/2019"
"Wolverhampton City Council","http://opendatacommunities.org/id/metropolitan-district-council/wolverhampton","WWW.LABC.UK.COM",300,"City Centre","7399","Services - Fees and Charges","05/08/2019"
"Wolverhampton City Council","http://opendatacommunities.org/id/metropolitan-district-council/wolverhampton","PAYPAL  POLY POSTAL",106,"Environmental Crime and Consumer Protect","7399","Equipment - Purchase","05/08/2019"
"Wolverhampton City Council","http://opendatacommunities.org/id/metropolitan-district-council/wolverhampton","Trainline",67.92,"CIN/CP Social Work Unit - Area 4","4112","Public Transport","05/08/2019"
"Wolverhampton City Council","http://opendatacommunities.org/id/metropolitan-district-council/wolverhampton","AMZ Akooya",-11.98,"Mayor's Charity","5999","Equipment - Purchase","05/08/2019"
"Wolverhampton City Council","http://opendatacommunities.org/id/metropolitan-district-council/wolverhampton","LONDIS WOLVERHAMPTON",1.67,"Parks - Ranger Service","5499","Equipment - Purchase","05/08/2019"
"Wolverhampton City Council","http://opendatacommunities.org/id/metropolitan-district-council/wolverhampton","LOYD 37 CHURCH STREET",200,"Duke Street Bungalows","6011","Provisions (Not for resale)","05/08/2019"
"Wolverhampton City Council","http://opendatacommunities.org/id/metropolitan-district-council/wolverhampton","WWW.ARGOS.CO.UK",199.99,"EIP Locality 7","5310","Grant Payments","05/08/2019"
"Wolverhampton City Council","http://opendatacommunities.org/id/metropolitan-district-council/wolverhampton","REDWINGS LODGE",124.87,"Adult Services - East","7011","Services - Supplies & Services to users","05/08/2019"
"Wolverhampton City Council","http://opendatacommunities.org/id/metropolitan-district-council/wolverhampton","WOLVERHAMPTON HOTEL",189.75,"Destitute Plus","7011","Services - Supplies & Services to users","05/08/2019"
"Wolverhampton City Council","http://opendatacommunities.org/id/metropolitan-district-council/wolverhampton","AMZNMKTPLACE AMAZON.CO",21.65,"Northicote Farm","5999","Materials","05/08/2019"
"Wolverhampton City Council","http://opendatacommunities.org/id/metropolitan-district-council/wolverhampton","THE POST OFFICE",8.7,"Parks - Ranger Service","9402","Equipment - Purchase","05/08/2019"
"Wolverhampton City Council","http://opendatacommunities.org/id/metropolitan-district-council/wolverhampton","NATWEST BANK",250,"CAT","6011","Accommodation Costs","02/08/2019"
"Wolverhampton City Council","http://opendatacommunities.org/id/metropolitan-district-council/wolverhampton","THE RANGE",20,"LAC Transitions Team","5311","Accommodation Costs","02/08/2019"
"Wolverhampton City Council","http://opendatacommunities.org/id/metropolitan-district-council/wolverhampton","ALDERSLEY LEISURE",20,"EIP Locality 8","8299","Educ Trips, Holidays, Outings, Activity","02/08/2019"
"Wolverhampton City Council","http://opendatacommunities.org/id/metropolitan-district-council/wolverhampton","ROYAL BK OF SCOTLAND",250,"CIN/CP Social Work Unit - Area 6","6011","Section 17","02/08/2019"
"Wolverhampton City Council","http://opendatacommunities.org/id/metropolitan-district-council/wolverhampton","WM MORRISONS STORE",29,"Regional Adoption Agency","5411","Provisions (Not for resale)","02/08/2019"
"Wolverhampton City Council","http://opendatacommunities.org/id/metropolitan-district-council/wolverhampton","SCREWFIX TELFORD",83.3,"Ground Maintenance East","5211","Materials","02/08/2019"
"Wolverhampton City Council","http://opendatacommunities.org/id/metropolitan-district-council/wolverhampton","Trainline",41.92,"LAC Transitions Team","4112","Public Transport","02/08/2019"
"Wolverhampton City Council","http://opendatacommunities.org/id/metropolitan-district-council/wolverhampton","Trainline",98.85,"LAC Transitions Team","4112","Public Transport","02/08/2019"
"Wolverhampton City Council","http://opendatacommunities.org/id/metropolitan-district-council/wolverhampton","ASDA SUPERSTORE",12.87,"Youth Offending Team","5411","Provisions (Not for resale)","02/08/2019"
"Wolverhampton City Council","http://opendatacommunities.org/id/metropolitan-district-council/wolverhampton","NOVOTEL WOLVERHAMPTON",59,"Regional Adoption Agency","7011","Accommodation Costs","02/08/2019"
"Wolverhampton City Council","http://opendatacommunities.org/id/metropolitan-district-council/wolverhampton","Virgin Trains",44,"LAC Team","4112","Public Transport","02/08/2019"
"Wolverhampton City Council","http://opendatacommunities.org/id/metropolitan-district-council/wolverhampton","Virgin Trains",44,"Looked After Team 2","4112","Public Transport","02/08/2019"
"Wolverhampton City Council","http://opendatacommunities.org/id/metropolitan-district-council/wolverhampton","DVLA DRIVER ONLINE",34,"LAC Transitions Team","9399","Client Allowances","02/08/2019"
"Wolverhampton City Council","http://opendatacommunities.org/id/metropolitan-district-council/wolverhampton","JOHNSTONES DEC CENTRE",69.1,"Cleaning of Buildings - General","5231","Materials","02/08/2019"
"Wolverhampton City Council","http://opendatacommunities.org/id/metropolitan-district-council/wolverhampton","Amazon.co.uk MH6K22MH4",37.47,"MASH","5969","Equipment - Purchase","02/08/2019"
"Wolverhampton City Council","http://opendatacommunities.org/id/metropolitan-district-council/wolverhampton","AMZNMktplace",8.37,"Global Budgets","5999","Books","02/08/2019"
"Wolverhampton City Council","http://opendatacommunities.org/id/metropolitan-district-council/wolverhampton","HERON FOODS LTD",21.48,"Ernest Bold Court","5499","Catering","02/08/2019"
"Wolverhampton City Council","http://opendatacommunities.org/id/metropolitan-district-council/wolverhampton","AMZNMKTPLACE AMAZON.CO",3.71,"Head of Service - LAC","5999","Equipment - Purchase","02/08/2019"
"Wolverhampton City Council","http://opendatacommunities.org/id/metropolitan-district-council/wolverhampton","Virgin Trains",151.05,"Private Sector Housing","4112","Services - Fees and Charges","02/08/2019"
"Wolverhampton City Council","http://opendatacommunities.org/id/metropolitan-district-council/wolverhampton","AMZNMKTPLACE AMAZON.CO",4.98,"Bradley Resource Centre","5999","Equipment - Health and Safety","02/08/2019"
"Wolverhampton City Council","http://opendatacommunities.org/id/metropolitan-district-council/wolverhampton","EB  COUNTY LINES CONFE",345,"Workforce Development","7399","Training Expenses","02/08/2019"
"Wolverhampton City Council","http://opendatacommunities.org/id/metropolitan-district-council/wolverhampton","PAYPAL  SI NETWORK",70,"Central Training","8299","Training Expenses","02/08/2019"
"Wolverhampton City Council","http://opendatacommunities.org/id/metropolitan-district-council/wolverhampton","THE COAL AUTHORITY",48.77,"Legal Services","9399","Services - Fees and Charges","02/08/2019"
"Wolverhampton City Council","http://opendatacommunities.org/id/metropolitan-district-council/wolverhampton","PETS AT HOME LTD",12.32,"Children & Family Contact Services","5995","Equipment - Purchase","02/08/2019"
"Wolverhampton City Council","http://opendatacommunities.org/id/metropolitan-district-council/wolverhampton","ELY HOUSE HOTEL",57.5,"Destitute Plus","7011","Services - Supplies & Services to users","02/08/2019"
"Wolverhampton City Council","http://opendatacommunities.org/id/metropolitan-district-council/wolverhampton","CO-OP GROUP 070362",8.7,"Northicote Farm","5411","Provisions (Not for resale)","02/08/2019"
"Wolverhampton City Council","http://opendatacommunities.org/id/metropolitan-district-council/wolverhampton","Amazon.co.uk MH3ZH3HL4",29.12,"Northicote Farm","5969","Materials","02/08/2019"
"Wolverhampton City Council","http://opendatacommunities.org/id/metropolitan-district-council/wolverhampton","PAYPAL  CARVERS",61.71,"Northicote Farm","5085","Materials","02/08/2019"
"Wolverhampton City Council","http://opendatacommunities.org/id/metropolitan-district-council/wolverhampton","FACEBK XWMJUMNAR2",65.42,"Communications & Marketing - General","7311","Marketing \ Non-staff advertising","01/08/2019"
"Wolverhampton City Council","http://opendatacommunities.org/id/metropolitan-district-council/wolverhampton","FACEBK YHD8AL2B82",104.18,"Communications & Marketing - General","7311","Marketing \ Non-staff advertising","01/08/2019"
"Wolverhampton City Council","http://opendatacommunities.org/id/metropolitan-district-council/wolverhampton","WWW.VIDEK.CO.UK",266.95,"Strategic ICTS (ICT Serv Budget)","5045","Computing - Purchase of Hardware","01/08/2019"
"Wolverhampton City Council","http://opendatacommunities.org/id/metropolitan-district-council/wolverhampton","NATWEST BANK",250,"NRPF","6011","Financial Assistance In Exceptional Circ","01/08/2019"
"Wolverhampton City Council","http://opendatacommunities.org/id/metropolitan-district-council/wolverhampton","NATWEST BANK",200,"NRPF","6011","Client Allowances","01/08/2019"
"Wolverhampton City Council","http://opendatacommunities.org/id/metropolitan-district-council/wolverhampton","AMZNMktplace",36.66,"Safeguarding Admin Resource","5999","Equipment - Purchase","01/08/2019"
"Wolverhampton City Council","http://opendatacommunities.org/id/metropolitan-district-council/wolverhampton","TESCO STORES 5194",105.1,"Towers Outdoor Education Centre","5411","Provisions (Not for resale)","01/08/2019"
"Wolverhampton City Council","http://opendatacommunities.org/id/metropolitan-district-council/wolverhampton","BLOXWICH NORTH SST",5.1,"Economic Development","4112","Public Transport","01/08/2019"
"Wolverhampton City Council","http://opendatacommunities.org/id/metropolitan-district-council/wolverhampton","Central Taxis Limited",3.33,"Legal Services","4121","Client Transport","01/08/2019"
"Wolverhampton City Council","http://opendatacommunities.org/id/metropolitan-district-council/wolverhampton","Central Taxis Limited",3.42,"Legal Services","4121","Client Transport","01/08/2019"
"Wolverhampton City Council","http://opendatacommunities.org/id/metropolitan-district-council/wolverhampton","WOLVERHAMPTON T/O",291,"Service Director Adults","4112","Public Transport","01/08/2019"
"Wolverhampton City Council","http://opendatacommunities.org/id/metropolitan-district-council/wolverhampton","FACEBK ZUF4BLAD22",127.3,"Central Costs","7311","Marketing \ Non-staff advertising","01/08/2019"
"Wolverhampton City Council","http://opendatacommunities.org/id/metropolitan-district-council/wolverhampton","LOYD 89 CHURCH STREET",50,"Ernest Bold Court","6011","Provisions (Not for resale)","01/08/2019"
"Wolverhampton City Council","http://opendatacommunities.org/id/metropolitan-district-council/wolverhampton","CUMMINGS BROTHERS LOCK",45.42,"Hickman Avenue Depot","7399","Materials","01/08/2019"
"Wolverhampton City Council","http://opendatacommunities.org/id/metropolitan-district-council/wolverhampton","Amazon.co.uk MH1ED3M24",37.47,"Mayor's Charity","5969","Accommodation Costs","01/08/2019"
"Wolverhampton City Council","http://opendatacommunities.org/id/metropolitan-district-council/wolverhampton","SITE ENERGY SERVIC",175,"Central Training","1731","Training Expenses","01/08/2019"
"Wolverhampton City Council","http://opendatacommunities.org/id/metropolitan-district-council/wolverhampton","WWW.CARESHOP.CO.UK",90.02,"Ernest Bold Court","5999","Materials","01/08/2019"
"Wolverhampton City Council","http://opendatacommunities.org/id/metropolitan-district-council/wolverhampton","GEN REGISTER OFFICE",38,"Legal Services","9399","Services - Fees and Charges","01/08/2019"
"Wolverhampton City Council","http://opendatacommunities.org/id/metropolitan-district-council/wolverhampton","WOLVERHAMPTON T/O",52.5,"Mental Health Assessment & Care Mgmt","4112","Accommodation Costs","01/08/2019"
"Wolverhampton City Council","http://opendatacommunities.org/id/metropolitan-district-council/wolverhampton","www.speedyservices.com",-162.9,"Music Support Team","7394","Equipment - Purchase","01/08/2019"
"Wolverhampton City Council","http://opendatacommunities.org/id/metropolitan-district-council/wolverhampton","ENJOY WOLVERHAMPTON",1583.33,"Mayor's Charity","5399","Equipment - Purchase","01/08/2019"
"Wolverhampton City Council","http://opendatacommunities.org/id/metropolitan-district-council/wolverhampton","GEN REGISTER OFFICE",30,"LAC Transitions Team","9399","Client Allowances","01/08/2019"
